Workbook

Sheet Bienvenido
C14: ÍNDICE DE ELEGIBILIDAD PARA REPÚBLICA DOMINICANA

Sheet Cuestionario
B2: Participante
C4: Número de criterios | H4: Nivel de percepción
H5: Poner 1 si: | I5: Poner 2 si: | J5: Poner 3 si: | K5: Poner 4 si: | L5: Poner 5 si:
C6: CATEGORIA 1 | H6: Nivel de prioridad del Proyecto APP para la Sociedad y el Gobierno
B7: P1 | C7: Alineación con la planeación estratégica nacional | H7: El proyecto no es prioritario ni forma parte del plan estratégico nacional ni de mediano ni de largo plazo | I7: El proyecto no es explícitamente prioritario ni forma parte del plan estratégico nacional, pero implícitamente podría ser parte en el largo plazo | J7: El proyecto no es explícitamente parte del plan estratégico nacional, pero implícitamente podría hacer parte a mediano y a largo plazo | K7: El proyecto es explícitamente parte del plan estratégico nacional, de mediano y de largo plazo | L7: El proyecto es una prioridad y está debidamente alineado con el plan estratégico nacional, de mediano y de largo plazo
H8: dsdsdsdsdsdsdsds
B9: P2 | C9: Alineación con la planeación estratégica sectorial | H9: El proyecto no es prioritario ni forma parte del plan estratégico sectorial ni de mediano ni de largo plazo | I9: El proyecto no es explícitamente prioritario ni forma parte del plan estratégico sectorial, pero implícitamente podría ser parte en el largo plazo | J9: El proyecto no es explícitamente parte del plan estratégico sectorial, pero implícitamente podría hacer parte a mediano y a largo plazo | K9: El proyecto es explícitamente parte del plan estratégico sectorial, de mediano y de largo plazo | L9: El proyecto es una prioridad y está debidamente alineado con el plan estratégico sectorial, de mediano y de largo plazo
B11: P3 | C11: Generación de riqueza compartida y/o reducción de desigualdad | H11: El proyecto no genera riqueza compartida ni reduce desigualdad | I11: El proyecto genera de manera limitada riqueza compartida y reduce de manera limitada la desigualdad | J11: El proyecto genera de manera parcial riqueza compartida y reduce de manera parcial la desigualdad | K11: El proyecto genera adecuadamente riqueza compartida y reduce adecuadamente la desigualdad | L11: El proyecto genera de manera importante riqueza compartida y reduce de manera importante la desigualdad
B13: P4 | C13: Reducción de la desigualdad territorial | H13: El proyecto no reduce la desigualdad territorial | I13: El proyecto reduce de manera limitada la desigualdad territorial | J13: El proyecto reduce de manera parcial la desigualdad territorial | K13: El proyecto reduce adecuadamente la desigualdad territorial | L13: El proyecto reduce de manera importante la desigualdad territorial
C15: CATEGORIA 2 | H15: Viabilidad del Proyecto APP
B16: P5 | C16: Complejidad del proyecto | H16: El proyecto presenta niveles muy altos de complejidad en sus especificaciones técnicas, de ingeniería/arquitectura y de calidad del servicio | I16: El proyecto presenta niveles altos de complejidad en sus especificaciones técnicas, de ingeniería/arquitectura y de calidad del servicio | J16: El proyecto presenta niveles medianos de complejidad en sus especificaciones técnicas, de ingeniería/arquitectura y de calidad del servicio | K16: El proyecto presenta niveles bajos de complejidad en sus especificaciones técnicas, de ingeniería/arquitectura y de calidad del servicio | L16: El proyecto presenta niveles muy bajos de complejidad en sus especificaciones técnicas, de ingeniería/arquitectura y de calidad del servicio
B18: P6 | C18: Disponibilidad de recursos para financiar estudios | H18: El proyecto no tiene recursos para financiar los estudios necesarios para su desarrollo (preparación, estructuración y licitación) | I18: El proyecto tiene menos del 50% de los recursos para financiar los estudios necesarios para su desarrollo (preparación, estructuración y licitación) | J18: El proyecto tiene entre 50% y 75% de los recursos para financiar los estudios necesarios para su desarrollo (preparación, estructuración y licitación) | K18: El proyecto tiene entre 75% y 100% de los recursos para financiar los estudios necesarios para su desarrollo (preparación, estructuración y licitación) | L18: El proyecto tiene 100% de los recursos para financiar los estudios necesarios para su desarrollo (preparación, estructuración y licitación)
B20: P7 | C20: Líder del proyecto | H20: Es muy difícil identificar un líder (persona/institución) encargado del desarrollo del proyecto | I20: Es difícil identificar un líder (persona/institución) encargado del desarrollo del proyecto | J20: Es medianamente difícil identificar un líder (persona/institución) encargado del desarrollo del proyecto | K20: Es fácil identificar un líder (persona/institución) encargado del desarrollo del proyecto | L20: Es muy fácil identificar un líder (persona/institución) encargado del desarrollo del proyecto
B22: P8 | C22: Compromiso político con el proyecto | H22: El proyecto no recibe apoyo del tomador de decisión político y no tiene probabilidad de estar firmado antes del fin del mandato del gobierno en turno. | I22: El proyecto no recibe apoyo activo del tomador de decisión político y tiene poca probabilidad de estar firmado antes del fin del mandato del gobierno en turno. | J22: El proyecto recibe apoyo del tomador de decisión político pero no tiene probabilidad de estar firmado antes del fin del mandato del gobierno en turno | K22: El proyecto recibe apoyo del tomador de decisión político y tiene alta probabilidad de estar firmado antes del fin del mandato del gobierno en turno | L22: El proyecto recibe apoyo activo del tomador de decisión político y tiene muy alta probabilidad de estar firmado antes del fin del mandato del gobierno en turno
B24: P9 | C24: Grado de avances en los estudios | H24: No existen estudios previos que permiten evaluar el grado de factibilidad del proyecto | I24: Existen algunos estudios previos pero no permiten evaluar con precisión la factibilidad del proyecto y los costos de este | J24: Existen algunos estudios previos que permiten evaluar la factibilidad del proyecto y los costos de este con precisión mediana | K24: Existen estudios previos que permiten evaluar la factibilidad del proyecto y los costos de este con precisión alta | L24: Existen varios estudios previos que permiten evaluar la factibilidad del proyecto y los costos de este con precisión alta
B26: P10 | C26: Rechazo del proyecto por parte de los involucrados | H26: El proyecto genera un grado de rechazo muy alto por parte de unos involucrados a este, ya sean los usuarios, la sociedad civil y/o las comunidades afectadas | I26: El proyecto genera un grado de rechazo alto por parte de unos involucrados a este, ya sean los usuarios, la sociedad civil y/o las comunidades afectadas | J26: El proyecto genera un grado de rechazo mediano por parte de unos involucrados a este, ya sean los usuarios, la sociedad civil y/o las comunidades afectadas | K26: El proyecto genera un grado de rechazo bajo por parte de unos involucrados a este, ya sean los usuarios, la sociedad civil y/o las comunidades afectadas | L26: El proyecto genera un grado de rechazo muy bajo por parte de unos involucrados a este, ya sean los usuarios, la sociedad civil y/o las comunidades afectadas
B28: P11 | C28: Número de involucrados | H28: Hay un número muy elevado de involucrados al proyecto lo que hace que sea casi imposible generar los acuerdos para su desarrollo | I28: Hay un número elevado de involucrados al proyecto lo que hace que sea difícil generar los acuerdos para su desarrollo | J28: Hay un número elevado de involucrados al proyecto sin embargo es factible generar los acuerdos para su desarrollo | K28: Hay un número elevado de involucrados al proyecto sin embargo no es difícil generar los acuerdos para su desarrollo | L28: Hay un número ideal de involucrados al proyecto y es muy fácil generar los acuerdos para su desarrollo
B30: P12 | C30: Impacto ambiental | H30: El proyecto presenta un nivel de riesgo ambiental muy alto y su diseño no contribuye a disminuir los impactos ambientales | I30: El proyecto presenta un nivel de riesgo ambiental alto y su diseño no contribuye a disminuir los impactos ambientales | J30: El proyecto presenta un nivel de riesgo ambiental relativamente alto no obstante su diseño contribuye a disminuir los impactos ambientales | K30: El proyecto presenta un nivel de riesgo ambiental bajo y su diseño contribuye a disminuir los impactos ambientales | L30: El proyecto presenta un nivel de riesgo ambiental muy bajo y su diseño contribuye a disminuir los impactos ambientales
B32: P13 | C32: Cambio de ley y/o adquisición de terrenos | H32: Es necesario para el proyecto modificar varias leyes y adquirir varios terrenos (o derechos de paso) | I32: Es necesario para el proyecto modificar varias leyes o adquirir varios terrenos (o derechos de paso) | J32: Es necesario para el proyecto modificar por lo menos una ley o adquirir un terreno (o derechos de paso) | K32: No es necesario para el proyecto modificar leyes ni adquirir terrenos (o derechos de paso) | L32: No es necesario para el proyecto modificar leyes y ya se tienen 100% de los terrenos (o derechos de paso)
C34: CATEGORIA 3 | H34: Características del proyecto adaptadas a la modalidad APP
B35: P14 | C35: Tamaño del proyecto o grupos de proyectos | H35: El monto de inversión (CAPEX) del proyecto o grupo de proyectos es inferior a 10 millones de USD | I35: El monto de inversión (CAPEX) del proyecto o grupo de proyectos es entre 10 y 20 millones de USD | J35: El monto de inversión (CAPEX) del proyecto o grupo de proyectos es entre 20 y 50 millones de USD | K35: El monto de inversión (CAPEX) del proyecto o grupo de proyectos es entre 50 y 100 millones de USD | L35: El monto de inversión (CAPEX) del proyecto o grupo de proyectos es superior a 100 millones de USD
B37: P15 | C37: Tiempo de construcción del proyecto | H37: El tiempo de construcción del proyecto es mayor a 48 meses | I37: El tiempo de construcción del proyecto es entre 36 y 48 meses | J37: El tiempo de construcción del proyecto es entre 24 y 36 meses | K37: El tiempo de construcción del proyecto es entre 18 y 24 meses | L37: El tiempo de construcción del proyecto es inferior a 18 meses
B39: P16 | C39: Urgencia del proyecto | H39: El proyecto es muy urgente de implementar por presión política o interrupción del servicio | I39: El proyecto es urgente de implementar por presión política o interrupción del servicio | J39: El proyecto es medianamente urgente de implementar por presión política o interrupción del servicio | K39: El proyecto es poco urgente de implementar por presión política o interrupción del servicio | L39: El proyecto es muy poco urgente de implementar por presión política o interrupción del servicio
B41: P17 | C41: Estabilidad de la tecnología del proyecto | H41: El proyecto es muy intensivo en tecnologías que incurren cambios acelerados y sufren de obsolescencia rápidamente | I41: El proyecto es intensivo en tecnologías que incurren cambios acelerados y sufren de obsolescencia rápidamente | J41: El proyecto es medianamente intensivo en tecnologías que incurren cambios acelerados y sufren de obsolescencia rápidamente | K41: El proyecto es poco intensivo en tecnologías que incurren cambios acelerados y sufren de obsolescencia rápidamente | L41: El proyecto es muy poco intensivo en tecnologías que incurren cambios acelerados y sufren de obsolescencia rápidamente
B43: P18 | C43: Demanda de largo plazo del proyecto | H43: El proyecto tiene una demanda de corto plazo difícil a estimar a partir de estudios de demanda | I43: El proyecto tiene una demanda de corto plazo relativamente fácil a estimar a partir de estudios de demanda | J43: El proyecto tiene una demanda de largo plazo pero díficil a estimar a partir de estudios de demanda | K43: El proyecto tiene una demanda de largo plazo fácil a estimar a partir de estudios de demanda. | L43: El proyecto tiene una demanda estable, de largo plazo y fácil a estimar a partir de estudios de demanda
B45: P19 | C45: Definición de los servicios e indicadores de desempeño (KPI) | H45: Es muy difícil para ese proyecto definir en el contrato los servicios a proveer y formular indicadores de desempeño para controlar su calidad | I45: Es difícil para ese proyecto definir en el contrato los servicios a proveer y formular indicadores de desempeño para controlar su calidad | J45: Es medianamente difícil para ese proyecto definir en el contrato los servicios a proveer y formular indicadores de desempeño para controlar su calidad | K45: No es difícil para el proyecto definir en el contrato los servicios a proveer y formular indicadores de desempeño para controlar su calidad | L45: No hay dificultad alguna para el proyecto definir en el contrato los servicios a proveer y formular indicadores de desempeño para controlar su calidad
B47: P20 | C47: Independencia (interfaz) con otros proyectos | H47: La ejecución y operación de ese proyecto dependen fuertemente de la ejecución y/u operación de otros proyectos en desarrollo o infraestructura existente | I47: La ejecución y operación de ese proyecto dependen de la ejecución y/u operación de otros proyectos en desarrollo o infraestructura existente | J47: La ejecución y operación de ese proyecto dependen medianamente de la ejecución y/u operación de otros proyectos en desarrollo o infraestructura existente | K47: La ejecución y operación de ese proyecto dependen poco de la ejecución y/u operación de otros proyectos en desarrollo o infraestructura existente | L47: La ejecución y operación de ese proyecto no dependen de la ejecución y/u operación de otros proyectos en desarrollo o infraestructura existente
C49: CATEGORIA 4 | H49: Bancabilidad del proyecto APP
B50: P21 | C50: Proyecto autofinanciable | H50: El proyecto no genera ingresos (de otra fuente que pública) | I50: El proyecto genera ingresos (de otra fuente pública) pero insuficientes para cubrir los costos de inversión (CAPEX), operación y mantenimiento del proyecto (OPEX) | J50: El proyecto genera ingresos (distinta a la fuente pública) suficientes para cubrir el OPEX pero insuficientes para cubrir todos los costos | K50: En la mayor parte de los escenarios, el proyecto genera ingresos (de otra fuente distinta a la pública) suficientes para cubrir todos los costos | L50: En todos los escenarios, el proyecto genera ingresos (de otra fuente pública) suficientes para cubrir todos los costos de CAPEX y OPEX
B52: P22 | C52: Clima de inversión y condiciones macroeconómicas | H52: El clima de inversión y las condiciones macroeconómicas son muy desfavorables | I52: El clima de inversión y las condiciones macroeconómicas son desfavorables | J52: El clima de inversión y las condiciones macroeconómicas son ni favorables ni desfavorables | K52: El clima de inversión y las condiciones macroeconómicas son favorables | L52: El clima de inversión y las condiciones macroeconómicas son muy favorables
B54: P23 | C54: Atractividad del proyecto para los sectores privado y financiero | H54: El proyecto es muy poco atractivo para los inversionistas privados y/o instituciones financieras | I54: El proyecto es poco atractivo para los inversionistas privados y/o instituciones financieras | J54: El proyecto es medianamente atractivo para los inversionistas privados y/o instituciones financieras | K54: El proyecto es atractivo para los inversionistas privados y/o instituciones financieras | L54: El proyecto es muy atractivo para los inversionistas privados y/o instituciones financieras
B56: P24 | C56: Atractividad del proyecto para los organismos internacionales | H56: El proyecto es muy poco atractivo para los organismos internacionales | I56: El proyecto es poco atractivo para los organismos internacionales | J56: El proyecto es medianamente atractivo para los organismos internacionales | K56: El proyecto es atractivo para los organismos internacionales | L56: El proyecto es muy atractivo para los organismos internacionales
B58: P25 | C58: Costo de financiamiento | H58: El costo de financiamiento esperado del proyecto es muy alto | I58: El costo de financiamiento esperado del proyecto es alto | J58: El costo de financiamiento esperado del proyecto es mediano | K58: El costo de financiamiento esperado del proyecto es bajo | L58: El costo de financiamiento esperado del proyecto es muy bajo
B60: P26 | C60: Capacidad de los mercados locales de capital | H60: En el entorno del proyecto, los mercados de capital locales son muy poco desarrollados | I60: En el entorno del proyecto, los mercados de capital locales son poco desarrollados | J60: En el entorno del proyecto, los mercados de capital locales son medianamente desarrollados | K60: En el entorno del proyecto, los mercados de capital locales son desarrollados | L60: En el entorno del proyecto, los mercados de capital locales son muy desarrollados
B62: P27 | C62: Impacto sobre las finanzas públicas | H62: El proyecto tiene un impacto muy elevado sobre las finanzas de la entidad pública, ya sea por su costo presupuestario directo y/o de los pasivos contingentes que genera | I62: El proyecto tiene un impacto elevado sobre las finanzas de la entidad pública, ya sea por su costo presupuestario directo y/o de los pasivos contingentes que genera | J62: El proyecto tiene un impacto mediano sobre las finanzas de la entidad pública, ya sea por su costo presupuestario directo y/o de los pasivos contingentes que genera | K62: El proyecto tiene un impacto bajo sobre las finanzas de la entidad pública, ya sea por su costo presupuestario directo y/o de los pasivos contingentes que genera | L62: El proyecto tiene un impacto muy bajo sobre las finanzas de la entidad pública, ya sea por su costo presupuestario directo y/o de los pasivos contingentes que genera
B64: P28 | C64: Experiencia del sector privado en el país | H64: Existe en el país un nivel muy bajo de experiencia en cuanto al desarrollo de proyectos similares por APP | I64: Existe en el país un nivel bajo de experiencia en cuanto al desarrollo de proyectos similares por APP | J64: Existe en el país un nivel mediano de experiencia en cuanto al desarrollo de proyectos similares por APP | K64: Existe en el país un nivel alto de experiencia en cuanto al desarrollo de proyectos similares por APP | L64: Existe en el país un nivel muy alto de experiencia en cuanto al desarrollo de proyectos similares por APP
B66: P29 | C66: Experiencia del sector privado en países semejantes | H66: Existe en países semejantes un nivel muy bajo de experiencia en cuanto al desarrollo de proyectos con características similares por APP | I66: Existe en países semejantes un nivel bajo de experiencia en cuanto al desarrollo de proyectos con características similares por APP | J66: Existe en países semejantes un nivel mediano de experiencia en cuanto al desarrollo de proyectos con características similares por APP | K66: Existe en países semejantes un nivel alto de experiencia en cuanto al desarrollo de proyectos con características similares por APP | L66: Existe en países semejantes un nivel muy alto de experiencia en cuanto al desarrollo de proyectos con características similares por APP
B68: P30 | C68: Capacidad del sector privado | H68: Existe un número muy bajo de empresas a nivel nacional y/o internacional que tienen la capacidad técnica y de gestión para construir la infraestructura y proveer los servicios del proyecto | I68: Existe un número bajo de empresas a nivel nacional y/o internacional que tienen la capacidad técnica y de gestión para construir la infraestructura y proveer los servicios del proyecto | J68: Existe un número mediano de empresas a nivel nacional y/o internacional que tienen la capacidad técnica y de gestión para construir la infraestructura y proveer los servicios del proyecto | K68: Existe un número elevado de empresas a nivel nacional y/o internacional que tienen la capacidad técnica y de gestión para construir la infraestructura y proveer los servicios del proyecto | L68: Existe un número muy elevado de empresas a nivel nacional y/o internacional que tienen la capacidad técnica y de gestión para construir la infraestructura y proveer los servicios del proyecto
C70: CATEGORIA 5 | H70: Entorno del proyecto favorable a la modalidad APP
B71: P31 | C71: Riesgo político | H71: El sector privado enfrenta un riesgo muy alto de que la construcción se paralice o de expropiación al momento del cambio de gobierno | I71: El sector privado enfrenta un riesgo alto de que la construcción se paralice o de expropiación al momento del cambio de gobierno | J71: El sector privado enfrenta un riesgo mediano de que la construcción se paralice o de expropiación al momento del cambio de gobierno | K71: El sector privado enfrenta un riesgo bajo de que la construcción se paralice o de expropiación al momento del cambio de gobierno | L71: El sector privado enfrenta un riesgo muy bajo de que la construcción se paralice o de expropiación al momento del cambio de gobierno
B73: P32 | C73: Experiencia y capacidad del sector público | H73: El sector público tiene niveles de experiencia y capacidad muy bajos para llevar a cabo el proyecto y asegurar su monitoreo y supervisión | I73: El sector público tiene niveles de experiencia y capacidad bajos para llevar a cabo el proyecto y asegurar su monitoreo y supervisión | J73: El sector público tiene niveles de experiencia y capacidad medianos para llevar a cabo el proyecto y asegurar su monitoreo y supervisión | K73: El sector público tiene niveles de experiencia y capacidad altos para llevar a cabo el proyecto y asegurar su monitoreo y supervisión | L73: El sector público tiene niveles de experiencia y capacidad muy altos para llevar a cabo el proyecto y asegurar su monitoreo y supervisión
B75: P33 | C75: Cohesión institucional | H75: Existe un nivel muy bajo de cohesión institucional entre las diversas partes del sector público que participan al desarrollo del proyecto en sus distintas etapas | I75: Existe un nivel bajo de cohesión institucional entre las diversas partes del sector público que participan al desarrollo del proyecto en sus distintas etapas | J75: Existe un nivel mediano de cohesión institucional entre las diversas partes del sector público que participan al desarrollo del proyecto en sus distintas etapas | K75: Existe un nivel alto de cohesión institucional entre las diversas partes del sector público que participan al desarrollo del proyecto en sus distintas etapas | L75: Existe un nivel muy alto de cohesión institucional entre las diversas partes del sector público que participan al desarrollo del proyecto en sus distintas etapas
B77: P34 | C77: Flexibilidad en el contrato | H77: Es muy difícil estructurar el contrato (el modelo de negocio) de manera suficientemente flexible para poder ajustarse a imprevistos, contingencias y adaptarse en el tiempo a la complejidad del proyecto | I77: Es difícil estructurar el contrato (el modelo de negocio) de manera suficientemente flexible para poder ajustarse a imprevistos, contingencias y adaptarse en el tiempo a la complejidad del proyecto | J77: Es medianamente difícil estructurar el contrato (el modelo de negocio) de manera suficientemente flexible para poder ajustarse a imprevistos, contingencias y adaptarse en el tiempo a la complejidad del proyecto | K77: Es fácil estructurar el contrato (el modelo de negocio) de manera suficientemente flexible para poder ajustarse a imprevistos, contingencias y adaptarse en el tiempo a la complejidad del proyecto | L77: Es muy fácil estructurar el contrato (el modelo de negocio) de manera suficientemente flexible para poder ajustarse a imprevistos, contingencias y adaptarse en el tiempo a la complejidad del proyecto
B79: P35 | C79: Competencia al momento de la licitación | H79: El proyecto tiene un potencial muy bajo de generar competencia al momento del proceso de licitación | I79: El proyecto tiene un potencial bajo de generar competencia al momento del proceso de licitación | J79: El proyecto tiene un potencial mediano de generar competencia al momento del proceso de licitación | K79: El proyecto tiene un potencial alto de generar competencia al momento del proceso de licitación | L79: El proyecto tiene un potencial muy alto de generar competencia al momento del proceso de licitación
B81: P36 | C81: Configuración monopolística | H81: El usuario no tiene alternativas (sustitutos) al proyecto una vez en operación | I81: El usuario tiene una alternativa (sustituto) al proyecto una vez en operación, pero de menor calidad | J81: El usuario tiene pocas alternativas (sustitutos) al proyecto una vez en operación | K81: El usuario tiene varias alternativas (sustitutos) al proyecto una vez en operación | L81: El usuario tiene muchas alternativas (sustitutos) al proyecto una vez en operación de calidad por lo menos similar
B83: P43 | C83: CATEGORIA 6 | H83: Generación de Valor por Dinero bajo la modalidad APP
B84: P37 | C84: Innovaciones | H84: Es muy difícil para el sector privado implementar una serie de innovaciones técnicas y/u operativas para ese proyecto | I84: Es difícil para el sector privado implementar una serie de innovaciones técnicas y/u operativas para ese proyecto | J84: Es medianamente difícil para el sector privado implementar una serie de innovaciones técnicas y/u operativas para ese proyecto | K84: Es fácil para el sector privado implementar una serie de innovaciones técnicas y/u operativas para ese proyecto | L84: Es muy fácil para el sector privado implementar una serie de innovaciones técnicas y/u operativas para ese proyecto
B86: P38 | C86: Transferencia y gestión de riesgos | H86: Es muy difícil transferir al sector privado una cantidad sustancial de riesgos donde el sector privado sabrá gestionar de manera más eficiente que lo haría el sector público | I86: Es muy difícil transferir al sector privado una cantidad sustancial de riesgos donde el sector privado sabrá gestionar de manera más eficiente que lo haría el sector público | J86: Es muy medianamente difícil transferir al sector privado una cantidad sustancial de riesgos donde el sector privado sabrá gestionar de manera más eficiente que lo haría el sector público | K86: Es fácil transferir al sector privado una cantidad sustancial de riesgos donde el sector privado sabrá gestionar de manera más eficiente que lo haría el sector público | L86: Es muy fácil transferir al sector privado una cantidad sustancial de riesgos donde el sector privado sabrá gestionar de manera más eficiente que lo haría el sector público
B88: P39 | C88: Transferencia de tecnologías | H88: Es muy difícil que con la materialización del proyecto se transfieren al país o al sector tecnologías usadas en otros países o sectores | I88: Es difícil que con la materialización del proyecto se transfieren al país o sector tecnologías usadas en otros países o sectores | J88: Es medianamente difícil que con la materialización del proyecto se transfieren al país o sector tecnologías usadas en otros países o sectores | K88: Es fácil que con la materialización del proyecto se transfieren al país o sector tecnologías usadas en otros países o sectores | L88: Es muy fácil que con la materialización del proyecto se transfieren al país o sector tecnologías usadas en otros países o sectores
B90: P40 | C90: Sobrecostos y sobreplazos | H90: Proyectos similares, desarrollados bajo la modalidad de contratación tradicional de obra pública, presentan niveles de sobrecostos y sobreplazos muy bajos | I90: Proyectos similares, desarrollados bajo la modalidad de contratación tradicional de obra pública, presentan niveles de sobrecostos y sobreplazos bajos | J90: Proyectos similares, desarrollados bajo la modalidad de contratación tradicional de obra pública, presentan niveles de sobrecostos y sobreplazos medianos | K90: Proyectos similares, desarrollados bajo la modalidad de contratación tradicional de obra pública, presentan niveles de sobrecostos y sobreplazos altos | L90: Proyectos similares, desarrollados bajo la modalidad de contratación tradicional de obra pública, presentan niveles de sobrecostos y sobreplazos muy altos
B92: P41 | C92: Integración de funciones (bundling) | H92: Existen beneficios muy bajos, principalmente en términos de reducción de costos, en integrar en un mismo contrato las diversas fases de desarrollo de un proyecto | I92: Existen beneficios bajos, principalmente en términos de reducción de costos, en integrar en un mismo contrato las diversas fases de desarrollo de un proyecto | J92: Existen beneficios medianos, principalmente en términos de reducción de costos, en integrar en un mismo contrato las diversas fases de desarrollo de un proyecto | K92: Existen beneficios altos, principalmente en términos de reducción de costos, en integrar en un mismo contrato las diversas fases de desarrollo de un proyecto | L92: Existen beneficios muy altos, principalmente en términos de reducción de costos, en integrar en un mismo contrato las diversas fases de desarrollo de un proyecto
B94: P42 | C94: Calidad del servicio | H94: El hecho de desarrollar el proyecto por APP versus Obra Pública Tradicional permite un incremento muy bajo de calidad en el servicio | I94: El hecho de desarrollar el proyecto por APP versus Obra Pública Tradicional permite un incremento bajo de calidad en el servicio | J94: El hecho de desarrollar el proyecto por APP versus Obra Pública Tradicional permite un incremento mediano de calidad en el servicio | K94: El hecho de desarrollar el proyecto por APP versus Obra Pública Tradicional permite un incremento alto de calidad en el servicio | L94: El hecho de desarrollar el proyecto por APP versus Obra Pública Tradicional permite un incremento muy alto de calidad en el servicio
B96: P43 | C96: Operación y mantenimiento garantizados | H96: Proyectos similares, desarrollados bajo la modalidad de obra pública tradicional, logran siempre asegurar niveles adecuados de operación y mantenimiento de los activos públicos | I96: Proyectos similares, desarrollados bajo la modalidad de obra pública tradicional, logran asegurar niveles adecuados de operación y mantenimiento de los activos públicos | J96: Proyectos similares, desarrollados bajo la modalidad de obra pública tradicional, logran en general asegurar niveles adecuados de operación y mantenimiento de los activos públicos | K96: Proyectos similares, desarrollados bajo la modalidad de obra pública tradicional, no logran asegurar niveles adecuados de operación y mantenimiento de los activos públicos | L96: Proyectos similares, desarrollados bajo la modalidad de obra pública tradicional, no logran nunca asegurar niveles adecuados de operación y mantenimiento de los activos públicos
B98: P44 | C98: Optimización de los ingresos comerciales | H98: La provisión privada no permite generar ingresos comerciales más elevados en comparación al caso de la modalidad tradicional de gestión de la obra pública | I98: La provisión privada permite generar ingresos comerciales un poco más elevados en comparación al caso de la modalidad tradicional de gestión de la obra pública | J98: La provisión privada permite generar ingresos comerciales medianamente más elevados en comparación al caso de la modalidad tradicional de gestión de la obra pública | K98: La provisión privada permite generar ingresos comerciales elevados en comparación al caso de la modalidad tradicional de gestión de la obra pública | L98: La provisión privada permite generar ingresos comerciales muy elevados en comparación al caso de la modalidad tradicional de gestión de la obra pública
B100: P45 | C100: Reducción de la espera pública | H100: No existe postergación de la inversión para ese tipo de proyecto por falta de recursos públicos | I100: Existe un grado bajo de postergación de la inversión para ese tipo de proyecto por falta de recursos públicos | J100: Existe un grado mediano de postergación de la inversión para ese tipo de proyecto por falta de recursos públicos | K100: Existe un grado elevado de postergación de la inversión para ese tipo de proyecto por falta de recursos públicos | L100: Existe un grado muy elevado de postergación de la inversión para ese tipo de proyecto por falta de recursos públicos

Sheet Indice
F2: Índice PPP | I2: Medio
F3: Prioridad del proyecto APP | I3: Alto
F4: Viabilidad del proyecto APP | I4: Medio
F5: Características del proyecto APP | I5: Medio
F6: Bancabilidad del proyecto APP | I6: Medio
F7: Entorno de proyecto APP | I7: Bajo
F8: Generación de valor por la APP | I8: Alto

Sheet Tabulación (hidden)
G2: Pregunta 1 | H2: Pregunta 2 | L2: Pregunta 3 | M2: Pregunta 4 | N2: Pregunta 5 | BM2: Pregunta 6 | BS2: Pregunta8 | CA2: Pregunta 9 | CD2: Pregunta 10 | CG2: Pregunta 11 | CJ2: Pregunta 12 | CM2: Pregunta 7 | CN2: Pregunta 9 (otros)
B3: Individuo | C3: Correo | D3: Institución | E3: Sector | F3: Cuestionario | G3: P01.0 | H3: P02.1 | I3: P02.2 | J3: P02.3 | K3: P02.4 | L3: P03.0 | M3: P04.0 | N3: P05.1.1 | O3: P05.1.2 | P3: P05.1.3 | Q3: P05.1.4 | R3: P05.1.5 | S3: P05.2.1 | T3: P05.2.2 | U3: P05.2.3 | V3: P05.2.4 | W3: P05.2.5 | X3: P05.2.6 | Y3: P05.2.7 | Z3: P05.2.8 | AA3: P05.2.9 | AB3: P05.3.1 | AC3: P05.3.2 | AD3: P05.3.3 | AE3: P05.3.4 | AF3: P05.3.5 | AG3: P05.3.6 | AH3: P05.3.7 | AI3: P05.3.8 | AJ3: P05.4.1 | AK3: P05.4.2 | AL3: P05.4.3 | AM3: P05.4.4 | AN3: P05.4.5 | AO3: P05.4.6 | AP3: P05.4.7 | AQ3: P05.4.8 | AR3: P05.4.9 | AS3: P05.4.10 | AT3: P05.4.11 | AU3: P05.4.12 | AV3: P05.5.1 | AW3: P05.5.2 | AX3: P05.5.3 | AY3: P05.5.4 | AZ3: P05.5.5 | BA3: P05.5.6 | BB3: P05.5.7 | BC3: P05.5.8 | BD3: P05.6.1 | BE3: P05.6.2 | BF3: P05.6.3 | BG3: P05.6.4 | BH3: P05.6.5 | BI3: P05.6.6 | BJ3: P05.6.7 | BK3: P05.6.8 | BL3: P05.6.9 | BM3: P06.1 | BN3: P06.2 | BO3: P06.3 | BP3: P06.4 | BQ3: P06.5 | BR3: P06.6 | BS3: P08.1 | BT3: P08.2 | BU3: P08.3 | BV3: P08.4 | BW3: P08.5 | BX3: P08.6 | BY3: P08.7 | BZ3: P08.8 | CA3: P09.1 | CB3: P09.2 | CC3: P09.3 | CD3: P10.1 | CE3: P10.2 | CF3: P10.3 | CG3: P11.1 | CH3: P11.2 | CI3: P11.3 | CJ3: P12.1 | CK3: P12.2 | CL3: P12.3 | CM3: P07 | CN3: P09.3.Otros
B4: Sarah Feliz | C4: sfeliz@economia.gob | D4: MEPyD | E4: Público | F4: 1 | G4: 2 | H4: 2 | I4: 3 | J4: 3 | K4: 2 | L4: 2 | M4: 4 | N4: 5 | O4: 5 | P4: 5 | Q4: 3 | R4: 3 | S4: 1 | T4: 1 | U4: 1 | V4: 1 | W4: 3 | X4: 1 | Y4: 3 | Z4: 3 | AA4: 3 | AB4: 3 | AC4: 1 | AD4: 1 | AE4: 1 | AF4: 3 | AG4: 4 | AH4: 3 | AI4: 3 | AJ4: 3 | AK4: 3 | AL4: 5 | AM4: 2 | AN4: 1 | AO4: 4 | AP4: 3 | AQ4: 4 | AR4: 2 | AS4: 3 | AT4: 2 | AU4: 3 | AV4: 3 | AW4: 3 | AX4: 5 | AY4: 5 | AZ4: 5 | BA4: 5 | BB4: 5 | BC4: 4 | BD4: 3 | BE4: 5 | BF4: 3 | BG4: 1 | BH4: 5 | BI4: 5 | BJ4: 3 | BK4: 3 | BL4: 5 | BM4: 5 | BN4: 4 | BO4: 3 | BP4: 5 | BQ4: 3 | BR4: 5 | BS4: 3 | BT4: 2 | BU4: 4 | BV4: 4 | BW4: 4 | BX4: 3 | BY4: 3 | BZ4: 3 | CA4: 3 | CB4: 9 | CC4: 2 | CD4: 1 | CE4: 10 | CF4: 12 | CG4: 10 | CH4: 0 | CI4: 0 | CJ4: 0 | CK4: 0 | CL4: 0 | CM4: 0
B5: Yanna Dishmey | C5: ydishmey@economia.gob.do | D5: MEPyD | E5: Público | F5: 0
B6: Martin Francos | C6: mfrancos@economia.gob.do | D6: MEPyD | E6: Público | F6: 1 | G6: 2 | H6: 1 | I6: 3 | J6: 3 | K6: 2 | L6: 2 | M6: 3 | N6: 3 | O6: 3 | P6: 5 | Q6: 3 | R6: 3 | S6: 5 | T6: 3 | U6: 1 | V6: 4 | W6: 5 | X6: 5 | Y6: 5 | Z6: 5 | AA6: 5 | AB6: 5 | AC6: 1 | AD6: 1 | AE6: 1 | AF6: 5 | AG6: 5 | AH6: 5 | AI6: 3 | AJ6: 5 | AK6: 4 | AL6: 5 | AM6: 2 | AN6: 1 | AO6: 4 | AP6: 4 | AQ6: 1 | AR6: 3 | AS6: 5 | AT6: 3 | AU6: 5 | AV6: 3 | AW6: 4 | AX6: 3 | AY6: 5 | AZ6: 4 | BA6: 4 | BB6: 4 | BC6: 4 | BD6: 4 | BE6: 5 | BF6: 4 | BG6: 4 | BH6: 4 | BI6: 5 | BJ6: 5 | BK6: 5 | BL6: 4 | BM6: 1 | BN6: 5 | BO6: 3 | BP6: 4 | BQ6: 3 | BR6: 4 | BS6: 5 | BT6: 1 | BU6: 5 | BV6: 4 | BW6: 3 | BX6: 2 | BY6: 1 | BZ6: 4 | CA6: 2 | CB6: 8 | CC6: 11 | CD6: 4 | CE6: 5 | CF6: 10 | CG6: 0 | CH6: 0 | CI6: 0 | CJ6: 3 | CK6: 1 | CL6: 5 | CM6: 0
B7: Juan Carlos Lopez | C7: jclopez@economia.gob.do | D7: MEPyD | E7: Público | F7: 1 | G7: 1 | H7: 2 | I7: 1 | J7: 3 | K7: 2 | L7: 3 | M7: 3 | N7: 3 | O7: 4 | P7: 5 | Q7: 4 | R7: 3 | S7: 2 | T7: 5 | U7: 4 | V7: 3 | W7: 4 | X7: 1 | Y7: 4 | Z7: 2 | AA7: 3 | AB7: 2 | AC7: 3 | AD7: 4 | AE7: 3 | AF7: 5 | AG7: 4 | AH7: 3 | AI7: 3 | AJ7: 4 | AK7: 3 | AL7: 4 | AM7: 3 | AN7: 2 | AO7: 3 | AP7: 4 | AQ7: 5 | AR7: 4 | AS7: 3 | AT7: 1 | AU7: 3 | AV7: 2 | AW7: 4 | AX7: 3 | AY7: 4 | AZ7: 5 | BA7: 4 | BB7: 3 | BC7: 2 | BD7: 3 | BE7: 5 | BF7: 3 | BG7: 4 | BH7: 4 | BI7: 5 | BJ7: 5 | BK7: 2 | BL7: 4 | BM7: 5 | BN7: 3 | BO7: 4 | BP7: 3 | BQ7: 4 | BR7: 5 | BS7: 2 | BT7: 2 | BU7: 3 | BV7: 4 | BW7: 3 | BX7: 3 | BY7: 2 | BZ7: 3 | CA7: 3 | CB7: 2 | CC7: 8 | CD7: 12 | CE7: 7 | CF7: 4 | CG7: 7 | CH7: 8 | CI7: 10 | CJ7: 4 | CK7: 5 | CL7: 3 | CM7: 0
B8: Diego Armando Silfa Alvarez | C8: dsilfa@economia.gob.do | D8: MEPyD | E8: Público | F8: 1 | G8: 1 | H8: 2 | I8: 1 | J8: 1 | K8: 2 | L8: 5 | M8: 3 | N8: 4 | O8: 5 | P8: 5 | Q8: 4 | R8: 4 | S8: 2 | T8: 3 | U8: 2 | V8: 5 | W8: 5 | X8: 3 | Y8: 3 | Z8: 1 | AA8: 2 | AB8: 4 | AC8: 2 | AD8: 3 | AE8: 2 | AF8: 4 | AG8: 5 | AH8: 4 | AI8: 4 | AJ8: 5 | AK8: 4 | AL8: 5 | AM8: 4 | AN8: 4 | AO8: 2 | AP8: 5 | AQ8: 4 | AR8: 3 | AS8: 3 | AT8: 3 | AU8: 5 | AV8: 4 | AW8: 3 | AX8: 1 | AY8: 5 | AZ8: 5 | BA8: 5 | BB8: 5 | BC8: 5 | BD8: 5 | BE8: 5 | BF8: 5 | BG8: 5 | BH8: 5 | BI8: 5 | BJ8: 5 | BK8: 4 | BL8: 5 | BM8: 3 | BN8: 5 | BO8: 5 | BP8: 4 | BQ8: 4 | BR8: 5 | BS8: 2 | BT8: 2 | BU8: 4 | BV8: 4 | BW8: 4 | BX8: 5 | BY8: 3 | BZ8: 4 | CA8: 4 | CB8: 5 | CC8: 8 | CD8: 3 | CE8: 5 | CF8: 1 | CG8: 7 | CH8: 1 | CI8: 4 | CJ8: 2 | CK8: 3 | CL8: 4 | CM8: 0
B9: Jaime Ariel Pérez | C9: japerez@economia.gob.do | D9: MEPyD | E9: Público | F9: 1 | G9: 1 | H9: 2 | I9: 1 | J9: 1 | K9: 2 | L9: 3 | M9: 4 | N9: 4 | O9: 5 | P9: 4 | Q9: 3 | R9: 2 | S9: 4 | T9: 2 | U9: 2 | V9: 2 | W9: 3 | X9: 3 | Y9: 2 | Z9: 4 | AA9: 2 | AB9: 4 | AC9: 3 | AD9: 3 | AE9: 3 | AF9: 4 | AG9: 5 | AH9: 2 | AI9: 4 | AJ9: 4 | AK9: 4 | AL9: 4 | AM9: 2 | AN9: 2 | AO9: 4 | AP9: 3 | AQ9: 4 | AR9: 2 | AS9: 4 | AT9: 2 | AU9: 4 | AV9: 4 | AW9: 3 | AX9: 2 | AY9: 3 | AZ9: 2 | BA9: 3 | BB9: 3 | BC9: 3 | BD9: 5 | BE9: 5 | BF9: 4 | BG9: 5 | BH9: 5 | BI9: 5 | BJ9: 5 | BK9: 2 | BL9: 4 | BM9: 3 | BN9: 3 | BO9: 5 | BP9: 5 | BQ9: 3 | BR9: 5 | BS9: 3 | BT9: 2 | BU9: 5 | BV9: 5 | BW9: 4 | BX9: 4 | BY9: 3 | BZ9: 3 | CA9: 9 | CB9: 3 | CC9: 10 | CD9: 2 | CE9: 12 | CF9: 1 | CG9: 1 | CH9: 9 | CI9: 12 | CJ9: 4 | CK9: 5 | CL9: 3 | CM9: 0
B10: José Antonio Bencosme | C10: jabencosme@economia.gob.do | D10: MEPyD | E10: Público | F10: 0
B11: Ana Francisca Mejia Dicent | C11: amejia@economia.gob.do | D11: MEPyD | E11: Público | F11: 0
B12: Amin Santana Cruz | C12: aesantana@economia.gob.do | D12: MEPyD | E12: Público | F12: 0
B13: Osmar Beltré | C13: obeltre@economia.gob.do | D13: MEPyD | E13: Público | F13: 1 | G13: 1 | H13: 3 | I13: 1 | J13: 1 | K13: 2 | L13: 5 | M13: 4 | N13: 5 | O13: 5 | P13: 4 | Q13: 3 | R13: 5 | S13: 2 | T13: 4 | U13: 4 | V13: 3 | W13: 2 | X13: 2 | Y13: 3 | Z13: 2 | AA13: 3 | AB13: 3 | AC13: 4 | AD13: 4 | AE13: 4 | AF13: 2 | AG13: 3 | AH13: 2 | AI13: 4 | AJ13: 2 | AK13: 3 | AL13: 5 | AM13: 3 | AN13: 4 | AO13: 4 | AP13: 2 | AQ13: 4 | AR13: 4 | AS13: 3 | AT13: 3 | AU13: 5 | AV13: 4 | AW13: 4 | AX13: 3 | AY13: 5 | AZ13: 2 | BA13: 2 | BB13: 3 | BC13: 1 | BD13: 4 | BE13: 4 | BF13: 4 | BG13: 3 | BH13: 3 | BI13: 2 | BJ13: 2 | BK13: 3 | BL13: 2 | BM13: 5 | BN13: 3 | BO13: 3 | BP13: 4 | BQ13: 3 | BR13: 2 | BS13: 3 | BT13: 2 | BU13: 2 | BV13: 4 | BW13: 4 | BX13: 3 | BY13: 4 | BZ13: 1 | CA13: 11 | CB13: 8 | CC13: 2 | CD13: 9 | CE13: 2 | CF13: 1 | CG13: 1 | CH13: 4 | CI13: 12 | CJ13: 1 | CK13: 2 | CL13: 3 | CM13: 0
B14: Pamela Sanchez | C14: pschezg@gmail.com | D14: MINPRE | E14: Público | F14: 1 | G14: 1 | H14: 1 | I14: 1 | J14: 3 | K14: 2 | L14: 2 | M14: 3 | N14: 5 | O14: 5 | P14: 4 | Q14: 3 | R14: 4 | S14: 5 | T14: 4 | U14: 5 | V14: 5 | W14: 5 | X14: 4 | Y14: 4 | Z14: 5 | AA14: 4 | AB14: 4 | AC14: 5 | AD14: 3 | AE14: 4 | AF14: 5 | AG14: 4 | AH14: 4 | AI14: 4 | AJ14: 4 | AK14: 5 | AL14: 5 | AM14: 4 | AN14: 4 | AO14: 4 | AP14: 4 | AQ14: 5 | AR14: 5 | AS14: 5 | AT14: 4 | AU14: 5 | AV14: 5 | AW14: 4 | AX14: 4 | AY14: 5 | AZ14: 5 | BA14: 0 | BB14: 4 | BC14: 3 | BD14: 3 | BE14: 4 | BF14: 3 | BG14: 5 | BH14: 5 | BI14: 5 | BJ14: 5 | BK14: 5 | BL14: 5 | BM14: 4 | BN14: 5 | BO14: 4 | BP14: 5 | BQ14: 5 | BR14: 5 | BS14: 3 | BT14: 3 | BU14: 3 | BV14: 3 | BW14: 3 | BX14: 2 | BY14: 2 | BZ14: 4 | CA14: 8 | CB14: 1 | CC14: 2 | CD14: 3 | CE14: 1 | CF14: 4 | CG14: 10 | CH14: 4 | CI14: 5 | CJ14: 4 | CK14: 5 | CL14: 3 | CM14: 0
B15: Joel de Dios Ramírez | C15: joeldedios@gmail.com | D15: MINPRE | E15: Público | F15: 1 | G15: 1 | H15: 2 | I15: 1 | J15: 1 | K15: 2 | L15: 3 | M15: 3 | N15: 2 | O15: 2 | P15: 5 | Q15: 3 | R15: 3 | S15: 3 | T15: 4 | U15: 5 | V15: 3 | W15: 4 | X15: 3 | Y15: 3 | Z15: 4 | AA15: 2 | AB15: 4 | AC15: 3 | AD15: 5 | AE15: 4 | AF15: 4 | AG15: 5 | AH15: 4 | AI15: 3 | AJ15: 3 | AK15: 4 | AL15: 5 | AM15: 2 | AN15: 2 | AO15: 4 | AP15: 2 | AQ15: 4 | AR15: 2 | AS15: 4 | AT15: 1 | AU15: 4 | AV15: 4 | AW15: 3 | AX15: 4 | AY15: 3 | AZ15: 4 | BA15: 4 | BB15: 3 | BC15: 3 | BD15: 3 | BE15: 4 | BF15: 2 | BG15: 2 | BH15: 4 | BI15: 3 | BJ15: 3 | BK15: 3 | BL15: 3 | BM15: 2 | BN15: 4 | BO15: 4 | BP15: 3 | BQ15: 4 | BR15: 3 | BS15: 3 | BT15: 2 | BU15: 2 | BV15: 4 | BW15: 3 | BX15: 3 | BY15: 2 | BZ15: 3 | CA15: 2 | CB15: 12 | CC15: 1 | CD15: 9 | CE15: 7 | CF15: 3 | CG15: 1 | CH15: 8 | CI15: 9 | CJ15: 4 | CK15: 5 | CL15: 3 | CM15: 0
B16: Emilio Hungría | C16: ejhungria@gmail.com | D16: MAP | E16: Público | F16: 0
B17: Wilson Martinez | D17: CJPE | E17: Público | F17: 0
B18: Teresalina Paez Martínez | C18: tpaez@economia.gob.do | D18: MEPYD | E18: Público | F18: 0
B19: Elka Scheker | C19: escheker@gmail.com | D19: Asesora | E19: Público | F19: 1 | G19: 2 | H19: 2 | I19: 1 | J19: 3 | K19: 2 | L19: 5 | M19: 3 | N19: 3 | O19: 4 | P19: 5 | Q19: 3 | R19: 4 | S19: 4 | T19: 3 | U19: 3 | V19: 4 | W19: 5 | X19: 5 | Y19: 5 | Z19: 5 | AA19: 5 | AB19: 5 | AC19: 4 | AD19: 5 | AE19: 4 | AF19: 4 | AG19: 4 | AH19: 2 | AI19: 4 | AJ19: 4 | AK19: 4 | AL19: 4 | AM19: 4 | AN19: 3 | AO19: 4 | AP19: 4 | AQ19: 5 | AR19: 3 | AS19: 3 | AT19: 3 | AU19: 5 | AV19: 5 | AW19: 3 | AX19: 4 | AY19: 4 | AZ19: 4 | BA19: 4 | BB19: 5 | BC19: 4 | BD19: 4 | BE19: 4 | BF19: 4 | BG19: 3 | BH19: 4 | BI19: 4 | BJ19: 5 | BK19: 3 | BL19: 4 | BM19: 5 | BN19: 4 | BO19: 5 | BP19: 5 | BQ19: 4 | BR19: 4 | BS19: 4 | BT19: 1 | BU19: 4 | BV19: 4 | BW19: 2 | BX19: 2 | BY19: 2 | BZ19: 4 | CA19: 8 | CB19: 1 | CC19: 5 | CD19: 10 | CE19: 12 | CF19: 6 | CG19: 1 | CH19: 2 | CI19: 9 | CJ19: 3 | CK19: 4 | CL19: 2 | CM19: 0
C20: adelarosa@dgcp.gob.do | D20: Dirección General de Contrataciones Públicas | E20: Público | F20: 0
C21: yceron@dgcp.gob.do | D21: Dirección General de Contrataciones Públicas | E21: Público | F21: 1 | G21: 2 | H21: 1 | I21: 1 | J21: 1 | K21: 2 | L21: 2 | M21: 3 | N21: 4 | O21: 4 | P21: 5 | Q21: 3 | R21: 3 | S21: 1 | T21: 5 | U21: 5 | V21: 4 | W21: 4 | X21: 2 | Y21: 2 | Z21: 3 | AA21: 5 | AB21: 4 | AC21: 2 | AD21: 5 | AE21: 5 | AF21: 5 | AG21: 4 | AH21: 5 | AI21: 3 | AJ21: 5 | AK21: 3 | AL21: 5 | AM21: 5 | AN21: 3 | AO21: 4 | AP21: 2 | AQ21: 5 | AR21: 4 | AS21: 4 | AT21: 2 | AU21: 4 | AV21: 5 | AW21: 4 | AX21: 3 | AY21: 5 | AZ21: 5 | BA21: 5 | BB21: 3 | BC21: 5 | BD21: 2 | BE21: 4 | BF21: 3 | BG21: 2 | BH21: 4 | BI21: 4 | BJ21: 3 | BK21: 2 | BL21: 3 | BM21: 4 | BN21: 4 | BO21: 4 | BP21: 4 | BQ21: 4 | BR21: 4 | BS21: 2 | BT21: 1 | BU21: 1 | BV21: 4 | BW21: 2 | BX21: 3 | BY21: 1 | BZ21: 3 | CA21: 1 | CB21: 8 | CC21: 12 | CD21: 4 | CE21: 7 | CF21: 5 | CG21: 9 | CH21: 11 | CI21: 12 | CJ21: 4 | CK21: 3 | CL21: 2 | CM21: 0
B22: Oficina de abogados Melo Guerrero | D22: Oficina de abogados Melo Guerrero | E22: Privado | F22: 1 | G22: 1 | H22: 2 | I22: 1 | J22: 1 | K22: 3 | L22: 5 | M22: 3 | N22: 4 | O22: 4 | P22: 4 | Q22: 3 | R22: 5 | S22: 2 | T22: 2 | U22: 2 | V22: 3 | W22: 2 | X22: 2 | Y22: 3 | Z22: 2 | AA22: 1 | AB22: 4 | AC22: 3 | AD22: 4 | AE22: 2 | AF22: 4 | AG22: 3 | AH22: 3 | AI22: 3 | AJ22: 4 | AK22: 3 | AL22: 4 | AM22: 4 | AN22: 4 | AO22: 4 | AP22: 3 | AQ22: 2 | AR22: 2 | AS22: 3 | AT22: 3 | AU22: 4 | AV22: 4 | AW22: 1 | AX22: 3 | AY22: 4 | AZ22: 4 | BA22: 5 | BB22: 5 | BC22: 4 | BD22: 4 | BE22: 4 | BF22: 4 | BG22: 3 | BH22: 4 | BI22: 3 | BJ22: 4 | BK22: 4 | BL22: 4 | BM22: 3 | BN22: 5 | BO22: 4 | BP22: 4 | BQ22: 3 | BR22: 5 | BS22: 2 | BT22: 2 | BU22: 3 | BV22: 3 | BW22: 2 | BX22: 2 | BY22: 2 | BZ22: 4 | CA22: 1 | CB22: 3 | CC22: 5 | CD22: 3 | CE22: 12 | CF22: 1 | CG22: 12 | CH22: 5 | CI22: 8 | CJ22: 3 | CK22: 4 | CL22: 5 | CM22: 0
B23: Jiménez,Cruz, Peña | D23: Jiménez,Cruz, Peña | E23: Privado | F23: 1 | G23: 1 | H23: 2 | I23: 1 | J23: 1 | K23: 2 | L23: 2 | M23: 4 | N23: 4 | O23: 5 | P23: 4 | Q23: 3 | R23: 3 | S23: 1 | T23: 2 | U23: 4 | V23: 4 | W23: 4 | X23: 1 | Y23: 2 | Z23: 2 | AA23: 3 | AB23: 4 | AC23: 2 | AD23: 2 | AE23: 1 | AF23: 3 | AG23: 4 | AH23: 2 | AI23: 5 | AJ23: 3 | AK23: 3 | AL23: 4 | AM23: 4 | AN23: 3 | AO23: 3 | AP23: 2 | AQ23: 3 | AR23: 2 | AS23: 2 | AT23: 2 | AU23: 4 | AV23: 3 | AW23: 3 | AX23: 4 | AY23: 5 | AZ23: 4 | BA23: 5 | BB23: 4 | BC23: 1 | BD23: 3 | BE23: 4 | BF23: 3 | BG23: 4 | BH23: 4 | BI23: 5 | BJ23: 5 | BK23: 5 | BL23: 5 | BM23: 4 | BN23: 5 | BO23: 3 | BP23: 4 | BQ23: 4 | BR23: 5 | BS23: 2 | BT23: 1 | BU23: 1 | BV23: 3 | BW23: 2 | BX23: 3 | BY23: 2 | BZ23: 4 | CA23: 4 | CB23: 1 | CC23: 8 | CD23: 1 | CE23: 10 | CF23: 9 | CG23: 1 | CH23: 8 | CI23: 9 | CJ23: 4 | CK23: 5 | CL23: 3 | CM23: 0
B24: DMK Abogados | D24: DMK Abogados | E24: Privado | F24: 1 | G24: 1 | H24: 1 | I24: 1 | J24: 1 | K24: 1 | L24: 3 | M24: 3 | N24: 5 | O24: 5 | P24: 5 | Q24: 4 | R24: 4 | S24: 5 | T24: 5 | U24: 4 | V24: 5 | W24: 4 | X24: 4 | Y24: 5 | Z24: 0 | AA24: 4 | AB24: 5 | AC24: 4 | AD24: 4 | AE24: 5 | AF24: 5 | AG24: 4 | AH24: 4 | AI24: 4 | AJ24: 4 | AK24: 4 | AL24: 4 | AM24: 5 | AN24: 5 | AO24: 5 | AP24: 5 | AQ24: 5 | AR24: 5 | AS24: 5 | AT24: 5 | AU24: 5 | AV24: 4 | AW24: 5 | AX24: 5 | AY24: 5 | AZ24: 4 | BA24: 4 | BB24: 5 | BC24: 4 | BD24: 5 | BE24: 5 | BF24: 5 | BG24: 5 | BH24: 5 | BI24: 5 | BJ24: 5 | BK24: 4 | BL24: 5 | BM24: 5 | BN24: 5 | BO24: 5 | BP24: 4 | BQ24: 4 | BR24: 4 | BS24: 4 | BT24: 2 | BU24: 1 | BV24: 4 | BW24: 3 | BX24: 3 | BY24: 2 | BZ24: 3 | CA24: 8 | CB24: 5 | CC24: 4 | CD24: 12 | CE24: 10 | CF24: 2 | CG24: 12 | CH24: 10 | CI24: 1 | CJ24: 5 | CK24: 4 | CL24: 3 | CM24: 0
B25: Seibel Dargam Henríquez & Herrera | D25: Seibel Dargam Henríquez & Herrera | E25: Privado | F25: 1 | G25: 1 | H25: 2 | I25: 1 | J25: 1 | K25: 3 | L25: 6 | M25: 4 | N25: 5 | O25: 5 | P25: 5 | Q25: 4 | R25: 4 | S25: 2 | T25: 2 | U25: 2 | V25: 4 | W25: 5 | X25: 3 | Y25: 4 | Z25: 5 | AA25: 5 | AB25: 4 | AC25: 2 | AD25: 4 | AE25: 4 | AF25: 5 | AG25: 5 | AH25: 4 | AI25: 5 | AJ25: 3 | AK25: 3 | AL25: 5 | AM25: 2 | AN25: 2 | AO25: 4 | AP25: 3 | AQ25: 5 | AR25: 2 | AS25: 3 | AT25: 2 | AU25: 5 | AV25: 5 | AW25: 5 | AX25: 5 | AY25: 5 | AZ25: 2 | BA25: 5 | BB25: 3 | BC25: 2 | BD25: 3 | BE25: 5 | BF25: 4 | BG25: 5 | BH25: 5 | BI25: 5 | BJ25: 5 | BK25: 4 | BL25: 4 | BM25: 4 | BN25: 5 | BO25: 5 | BP25: 5 | BQ25: 4 | BR25: 4 | BS25: 1 | BT25: 2 | BU25: 1 | BV25: 2 | BW25: 3 | BX25: 3 | BY25: 3 | BZ25: 4 | CA25: 11 | CB25: 1 | CC25: 4 | CD25: 1 | CE25: 10 | CF25: 12 | CG25: 12 | CH25: 0 | CI25: 0 | CJ25: 5 | CK25: 1 | CL25: 3 | CM25: 0
B26: Encuesta 1 | D26: Ministerio de Hacienda | E26: Público | F26: 1 | G26: 1 | H26: 1 | I26: 1 | J26: 3 | K26: 1 | L26: 3 | M26: 4 | N26: 4 | O26: 4 | P26: 5 | Q26: 3 | R26: 3 | S26: 2 | T26: 3 | U26: 3 | V26: 2 | W26: 3 | X26: 2 | Y26: 5 | Z26: 4 | AA26: 4 | AB26: 4 | AC26: 3 | AD26: 2 | AE26: 2 | AF26: 3 | AG26: 4 | AH26: 4 | AI26: 4 | AJ26: 4 | AK26: 3 | AL26: 3 | AM26: 2 | AN26: 3 | AO26: 3 | AP26: 3 | AQ26: 5 | AR26: 4 | AS26: 3 | AT26: 2 | AU26: 4 | AV26: 4 | AW26: 4 | AX26: 3 | AY26: 4 | AZ26: 4 | BA26: 4 | BB26: 5 | BC26: 4 | BD26: 3 | BE26: 5 | BF26: 4 | BG26: 4 | BH26: 4 | BI26: 5 | BJ26: 4 | BK26: 3 | BL26: 4 | BM26: 4 | BN26: 5 | BO26: 4 | BP26: 5 | BQ26: 4 | BR26: 5 | BS26: 4 | BT26: 3 | BU26: 4 | BV26: 4 | BW26: 4 | BX26: 3 | BY26: 4 | BZ26: 5 | CA26: 1 | CB26: 9 | CC26: 5 | CD26: 5 | CE26: 10 | CF26: 12 | CG26: 5 | CH26: 1 | CI26: 12 | CJ26: 2 | CK26: 3 | CL26: 4 | CM26: 0
B27: Encuesta 2 | D27: Ministerio de Hacienda | E27: Público | F27: 1 | G27: 1 | H27: 1 | I27: 3 | J27: 1 | K27: 2 | L27: 6 | M27: 3 | N27: 5 | O27: 5 | P27: 5 | Q27: 5 | R27: 5 | S27: 4 | T27: 5 | U27: 5 | V27: 4 | W27: 5 | X27: 4 | Y27: 5 | Z27: 3 | AA27: 3 | AB27: 4 | AC27: 4 | AD27: 4 | AE27: 4 | AF27: 5 | AG27: 5 | AH27: 4 | AI27: 4 | AJ27: 5 | AK27: 4 | AL27: 5 | AM27: 4 | AN27: 3 | AO27: 5 | AP27: 4 | AQ27: 5 | AR27: 4 | AS27: 4 | AT27: 4 | AU27: 5 | AV27: 5 | AW27: 5 | AX27: 4 | AY27: 5 | AZ27: 4 | BA27: 5 | BB27: 4 | BC27: 4 | BD27: 3 | BE27: 4 | BF27: 4 | BG27: 3 | BH27: 4 | BI27: 5 | BJ27: 5 | BK27: 4 | BL27: 4 | BM27: 5 | BN27: 5 | BO27: 4 | BP27: 5 | BQ27: 4 | BR27: 4 | BS27: 3 | BT27: 1 | BU27: 2 | BV27: 3 | BW27: 2 | BX27: 4 | BY27: 1 | BZ27: 3 | CA27: 0 | CB27: 0 | CC27: 0 | CD27: 0 | CE27: 0 | CF27: 0 | CG27: 0 | CH27: 0 | CI27: 0 | CJ27: 0 | CK27: 0 | CL27: 0 | CM27: 1. Regulación y 2. Supervisión Con esto se refiere a un Marco Legal definido y por parte del Estado un mecanismo de control de eficiencia, transparencia y efectividad de la APP. Nivel de Importancia 5 en ambas
B28: Encuesta 3 | D28: Ministerio de Hacienda | E28: Público | F28: 1 | G28: 1 | H28: 1 | I28: 1 | J28: 3 | K28: 1 | L28: 0 | M28: 3 | N28: 5 | O28: 4 | P28: 5 | Q28: 5 | R28: 4 | S28: 0 | T28: 5 | U28: 4 | V28: 4 | W28: 3 | X28: 4 | Y28: 5 | Z28: 5 | AA28: 3 | AB28: 2 | AC28: 4 | AD28: 2 | AE28: 3 | AF28: 4 | AG28: 5 | AH28: 4 | AI28: 5 | AJ28: 4 | AK28: 4 | AL28: 5 | AM28: 3 | AN28: 0 | AO28: 5 | AP28: 0 | AQ28: 5 | AR28: 3 | AS28: 3 | AT28: 3 | AU28: 4 | AV28: 2 | AW28: 5 | AX28: 4 | AY28: 5 | AZ28: 5 | BA28: 5 | BB28: 3 | BC28: 0 | BD28: 3 | BE28: 4 | BF28: 3 | BG28: 5 | BH28: 5 | BI28: 4 | BJ28: 4 | BK28: 5 | BL28: 5 | BM28: 5 | BN28: 3 | BO28: 0 | BP28: 4 | BQ28: 5 | BR28: 5 | BS28: 4 | BT28: 1 | BU28: 4 | BV28: 3 | BW28: 2 | BX28: 2 | BY28: 3 | BZ28: 0 | CA28: 8 | CB28: 1 | CC28: 13 | CD28: 4 | CE28: 10 | CF28: 12 | CG28: 1 | CH28: 9 | CI28: 11 | CJ28: 1 | CK28: 2 | CL28: 3 | CM28: 0 | CN28: Ordenamiento Territorial
N30: =AVERAGE(N4:N28) -> 4.117647059 | O30: =AVERAGE(O4:O28) -> 4.352941176 | P30: 4.705882353 | Q30: 3.470588235 | R30: 3.647058824 | S30: 2.647058824 | T30: 3.411764706 | U30: 3.294117647 | V30: 3.529411765 | W30: 3.882352941 | X30: 2.882352941 | Y30: 3.705882353 | Z30: 3.235294118 | AA30: 3.352941176 | AB30: 3.823529412 | AC30: 2.941176471 | AD30: 3.294117647 | AE30: 3.058823529 | AF30: 4.117647059 | AG30: 4.294117647 | AH30: 3.470588235 | AI30: 3.823529412 | AJ30: 3.882352941 | AK30: 3.588235294 | AL30: 4.529411765 | AM30: 3.235294118 | AN30: 2.705882353 | AO30: 3.882352941 | AP30: 3.117647059 | AQ30: 4.176470588 | AR30: 3.176470588 | AS30: 3.529411765 | AT30: 2.647058824 | AU30: 4.352941176 | AV30: 3.882352941 | AW30: 3.705882353 | AX30: 3.529411765 | AY30: 4.529411765 | AZ30: 4 | BA30: 4.058823529 | BB30: 3.941176471 | BC30: 3.117647059 | BD30: 3.529411765 | BE30: 4.470588235 | BF30: 3.647058824 | BG30: 3.705882353 | BH30: 4.352941176 | BI30: 4.411764706 | BJ30: 4.294117647 | BK30: 3.588235294 | BL30: 4.117647059 | BM30: =AVERAGE(BM4:BM28) -> 3.941176471 | BN30: 4.294117647 | BO30: 3.823529412 | BP30: 4.294117647 | BQ30: 3.823529412 | BR30: 4.352941176
G36: =4/17 -> 0.2352941176 | H36: 7 | I36: 14 | J36: 10 | K36: 3 | L36: 0 | BM36: =BM30/$BM$37 -> 0.1606714628 | BN36: =BN30/$BM$37 -> 0.175059952 | BO36: 0.1558752998 | BP36: 0.175059952 | BQ36: 0.1558752998 | BR36: 0.1774580336
G37: =13/17 -> 0.7647058824 | H37: 9 | I37: 0 | J37: 0 | K37: 12 | L37: 5 | BM37: =SUM(BM30:BR30) -> 24.52941176
H38: 1 | I38: 3 | J38: 7 | K38: 2 | L38: 5
H39: =H36/17 -> 0.4117647059 | I39: =I36/17 -> 0.8235294118 | J39: 0.5882352941 | K39: 0.1764705882 | L39: 0
H40: =H37/17 -> 0.5294117647 | I40: 0 | J40: 0 | K40: 0.7058823529 | L40: 4
H41: 0.05882352941 | I41: 0.1764705882 | J41: 0.4117647059 | K41: 0.1176470588 | L41: 2
BS45: =COUNTIF(BS4:BS28,1) -> 1 | BT45: 6 | BU45: 4 | BV45: 0 | BW45: 0 | BX45: 0 | BY45: 3 | BZ45: 1 | CA45: 3 | CB45: 5 | CC45: 1 | CD45: 3 | CE45: 1 | CF45: 4 | CG45: =COUNTIF(CG4:CI28,1) -> 9 | CH45: =CG45/41 -> 0.2195121951 | CJ45: =COUNTIF(CJ4:CL28,1) -> 4 | CK45: =CJ45/45 -> 0.08888888889
BS46: =COUNTIF(BS4:BS28,2) -> 5 | BT46: 9 | BU46: 3 | BV46: 1 | BW46: 6 | BX46: 5 | BY46: 7 | BZ46: 0 | CA46: 2 | CB46: 1 | CC46: 3 | CD46: 1 | CE46: 1 | CF46: 1 | CG46: =COUNTIF(CG4:CI28,2) -> 1 | CH46: =CG46/41 -> 0.0243902439 | CJ46: =COUNTIF(CJ4:CL28,2) -> 6 | CK46: =CJ46/45 -> 0.1333333333
BS47: =COUNTIF(BS4:BS28,3) -> 6 | BT47: 2 | BU47: 3 | BV47: 5 | BW47: 6 | BX47: 9 | BY47: 5 | BZ47: 7 | CA47: 2 | CB47: 2 | CC47: 0 | CD47: 3 | CE47: 0 | CF47: 1 | CG47: =COUNTIF(CG4:CI28,3) -> 0 | CH47: 0 | CJ47: =COUNTIF(CJ4:CL28,3) -> 15 | CK47: 0.3333333333
BS48: =COUNTIF(BS4:BS28,4) -> 4 | BT48: 0 | BU48: 5 | BV48: 10 | BW48: 5 | BX48: 2 | BY48: 2 | BZ48: 7 | CA48: 2 | CB48: 0 | CC48: 2 | CD48: 3 | CE48: 0 | CF48: 2 | CG48: =COUNTIF(CG4:CI28,4) -> 3 | CH48: 0.07317073171 | CJ48: =COUNTIF(CJ4:CL28,4) -> 11 | CK48: 0.2444444444
BS49: =COUNTIF(BS4:BS28,5) -> 1 | BT49: 0 | BU49: 2 | BV49: 1 | BW49: 0 | BX49: 1 | BY49: 0 | BZ49: 1 | CA49: 0 | CB49: 2 | CC49: 3 | CD49: 1 | CE49: 2 | CF49: 1 | CG49: =COUNTIF(CG4:CI28,5) -> 3 | CH49: 0.07317073171 | CJ49: =COUNTIF(CJ4:CL28,5) -> 9 | CK49: 0.2
CA50: =COUNTIF(CA4:CA28,6) -> 0 | CB50: 0 | CC50: 0 | CD50: 0 | CE50: 0 | CF50: 1 | CG50: =COUNTIF(CG4:CI28,6) -> 0 | CH50: 0
BS51: =SUM(BS45:BS46)/17 -> 0.3529411765 | BT51: =SUM(BT45:BT46)/17 -> 0.8823529412 | BU51: =SUM(BU45:BU46)/17 -> 0.4117647059 | BV51: 0.05882352941 | BW51: 0.3529411765 | BX51: 0.2941176471 | BY51: 0.5882352941 | BZ51: =SUM(BZ45:BZ46)/16 -> 0.0625 | CA51: =COUNTIF(CA4:CA28,7) -> 0 | CB51: 0 | CC51: 0 | CD51: 0 | CE51: 3 | CF51: 0 | CG51: =COUNTIF(CG4:CI28,7) -> 2 | CH51: 0.0487804878
BS52: =BS47/17 -> 0.3529411765 | BT52: =BT47/17 -> 0.1176470588 | BU52: 0.1764705882 | BV52: 0.2941176471 | BW52: 0.3529411765 | BX52: 0.5294117647 | BY52: 0.2941176471 | BZ52: =BZ47/16 -> 0.4375 | CA52: =COUNTIF(CA4:CA28,8) -> 4 | CB52: 3 | CC52: 3 | CD52: 0 | CE52: 0 | CF52: 0 | CG52: =COUNTIF(CG4:CI28,8) -> 4 | CH52: 0.09756097561
BS53: =SUM(BS48:BS49)/17 -> 0.2941176471 | BT53: =SUM(BT48:BT49)/17 -> 0 | BU53: 0.4117647059 | BV53: 0.6470588235 | BW53: 0.2941176471 | BX53: 0.1764705882 | BY53: 0.1176470588 | BZ53: =SUM(BZ48:BZ49)/16 -> 0.5 | CA53: =COUNTIF(CA4:CA28,9) -> 1 | CB53: 2 | CC53: 0 | CD53: 2 | CE53: 0 | CF53: 1 | CG53: =COUNTIF(CG4:CI28,9) -> 6 | CH53: 0.1463414634
CA54: =COUNTIF(CA4:CA28,10) -> 0 | CB54: 0 | CC54: 1 | CD54: 1 | CE54: 6 | CF54: 1 | CG54: =COUNTIF(CG4:CI28,10) -> 4 | CH54: 0.09756097561
CA55: =COUNTIF(CA4:CA28,11) -> 2 | CB55: 0 | CC55: 1 | CD55: 0 | CE55: 0 | CF55: 0 | CG55: =COUNTIF(CG4:CI28,11) -> 2 | CH55: 0.0487804878
CA56: =COUNTIF(CA4:CA28,12) -> 0 | CB56: 1 | CC56: 1 | CD56: 2 | CE56: 3 | CF56: 4 | CG56: =COUNTIF(CG4:CI28,12) -> 7 | CH56: 0.1707317073
CA57: =COUNTIF(CA4:CA28,13) -> 0 | CB57: 0 | CC57: 1 | CD57: 0 | CE57: 0 | CF57: 0 | CG57: =COUNTIF(CG4:CI28,13) -> 0 | CH57: 0
CA58: =COUNTIF(CA4:CA28,14) -> 0 | CB58: 0 | CC58: 0 | CD58: 0 | CE58: 0 | CF58: 0
CA59: =COUNTIF(CA4:CA28,15) -> 0 | CB59: 0 | CC59: 0 | CD59: 0 | CE59: 0 | CF59: 0

Sheet Ponderadores (hidden)
B3: Criterio | C3: Descripción del criterio | D3: Promedio Criterios | E3: Ponderación Intracategoría (%) | F3: Promedio Categorías | G3: Ponderación Categorías (%) | H3: Ponderación Criterios (%) | J3: Indice | K3: =K4+K10+K20+K28+K41+K50 -> 
B4: Categoría 1 | C4: =Cuestionario!H6 -> Nivel de prioridad del Proyecto APP para la Sociedad y el Gobierno | D4: =SUM(D5:D9) -> 20.29411765 | E4: =SUM(E5:E9) -> 1 | F4: =Y186 -> 3.941176471 | G4: =AA186 -> 0.1606714628 | H4: =SUM(H5:H9) -> 0.1606714628 | J4: =SUMPRODUCT(E5:E9,J5:J9) ->  | K4: =J4*G4 -> 
A5: P1 | B5: =Cuestionario!C7 -> Alineación con la planeación estratégica nacional | C5: La modalidad APP se adecúa más a los proyectos reconocidos como prioritarios por la entidad pública y debidamente alineados con la planeación estratégica a nivel nacional. | D5: =Y135 -> 4.117647059 | E5: =D5/$D$4 -> 0.2028985507 | H5: =$G$4*E5 -> 0.03260000695 | J5: =Cuestionario!J8 -> 0
A6: P2 | B6: =Cuestionario!C9 -> Alineación con la planeación estratégica sectorial | C6: La modalidad APP se adecúa más a los proyectos reconocidos como prioritarios por la entidad pública y debidamente alineados con la planeación estratégica a nivel sectorial. | D6: =Y136 -> 4.352941176 | E6: =D6/$D$4 -> 0.2144927536 | H6: =$G$4*E6 -> 0.03446286449 | J6: =Cuestionario!J10 -> 0 | P6: 2
A7: P3 | B7: =Cuestionario!#REF! ->  | C7: La modalidad APP se adecúa más a los proyectos que generan un impacto socioeconómico positivo sobre la población y que cubren sus necesidades o solucionan un problema público. | D7: 4.705882353 | E7: 0.231884058 | H7: 0.0372571508 | J7: =Cuestionario!#REF! ->  | P7: Viabilidad del proyecto como una APP por categorías
A8: P4 | B8: =Cuestionario!C11 -> Generación de riqueza compartida y/o reducción de desigualdad | C8: La modalidad APP se adecúa más a los proyectos importantes para la sociedad y el gobierno, en el sentido que apoyen a reducir la pobreza y la desigualdad social en el país. | D8: 3.470588235 | E8: 0.1710144928 | H8: 0.02747714872 | J8: =Cuestionario!J12 -> 0 | P8: Nivel de importancia de los criterios de elegibilidad
A9: P5 | B9: =Cuestionario!C13 -> Reducción de la desigualdad territorial | C9: La modalidad APP se adecúa más a los proyectos importantes para la sociedad y el gobierno, en el sentido colaboren en reducir las desigualdades entre territorios en el país. | D9: 3.647058824 | E9: 0.1797101449 | H9: 0.02887429187 | J9: =Cuestionario!J14 -> 0 | P9: Nivel de importancia de las categorías de elegibilidad
B10: Categoría 2 | C10: =Cuestionario!H15 -> Viabilidad del Proyecto APP | D10: =SUM(D11:D19) -> 29.94117647 | E10: =SUM(E11:E19) -> 1 | F10: =Y187 -> 4.294117647 | G10: =AA187 -> 0.175059952 | H10: =SUM(H11:H19) -> 0.175059952 | J10: =SUMPRODUCT(E11:E19,J11:J19) -> 0 | K10: =J10*G10 -> 0
A11: P6 | B11: =Cuestionario!C16 -> Complejidad del proyecto | C11: La modalidad APP se adecúa más a los proyectos que no presentan niveles altos de complejidad en sus especificaciones técnicas, de ingeniería /arquitectura, ambientales y de desempeño de la calidad del servicio. | D11: =Y140 -> 2.647058824 | E11: =D11/$D$10 -> 0.0884086444 | H11: =$G$10*E11 -> 0.01547681305 | J11: =Cuestionario!J17 -> 0
A12: P7 | B12: =Cuestionario!C18 -> Disponibilidad de recursos para financiar estudios | C12: La modalidad APP se adecúa más a los proyectos por los cuales la entidad pública dispone de recursos monetarios para financiar los procesos de preparación, estructuración y licitación. | D12: =Y141 -> 3.411764706 | E12: =D12/$D$10 -> 0.1139489194 | H12: =$G$10*E12 -> 0.01994789237 | J12: =Cuestionario!J19 -> 0
A13: P8 | B13: =Cuestionario!C22 -> Compromiso político con el proyecto | C13: La modalidad APP se adecúa más a los proyectos por los cuales el tomador de decisión político está comprometido con el proyecto y puede lograr firmar el contrato antes del fin de su mandato. | D13: 3.294117647 | E13: =D13/$D$10 -> 0.1100196464 | H13: 0.01926003402 | J13: =Cuestionario!J23 -> 0
A14: P9 | B14: =Cuestionario!C24 -> Grado de avances en los estudios | C14: La modalidad APP se adecúa más a los proyectos que tienen un mayor grado de avance en sus estudios de factibilidad. | D14: 3.529411765 | E14: 0.1178781925 | H14: 0.02063575073 | J14: =Cuestionario!J25 -> 0
A15: P10 | B15: =Cuestionario!C26 -> Rechazo del proyecto por parte de los involucrados | C15: La modalidad APP se adecúa más a los proyectos que no son objeto de rechazo por parte de los involucrados del proyecto en particular los usuarios directos, pero también la sociedad civil y las comunidades afectadas. | D15: 3.882352941 | E15: 0.1296660118 | H15: 0.0226993258 | J15: =Cuestionario!J27 -> 0
A16: P11 | B16: =Cuestionario!C28 -> Número de involucrados | C16: La modalidad APP se adecúa más a los proyectos que tienen un número bajo de involucrados lo que facilita la conciliación de acuerdos para su desarrollo. | D16: 2.882352941 | E16: 0.09626719057 | H16: 0.01685252976 | J16: =Cuestionario!J29 -> 0
A17: P12 | B17: =Cuestionario!C30 -> Impacto ambiental | C17: La modalidad APP se adecúa más a los proyectos que presentan riesgos ambientales acotados y/o participan a disminuir los impactos ambientales. | D17: 3.705882353 | E17: 0.1237721022 | H17: 0.02166753827 | J17: =Cuestionario!J31 -> 0
A18: P13 | B18: =Cuestionario!C32 -> Cambio de ley y/o adquisición de terrenos | C18: La modalidad APP se adecúa más a los proyectos por los cuales no se tiene que modificar una ley y/o adquirir terrenos (o derechos de paso). | D18: 3.235294118 | E18: 0.1080550098 | H18: 0.01891610484 | J18: =Cuestionario!J33 -> 0
A19: P14 | B19: =Cuestionario!C20 -> Líder del proyecto | C19: La modalidad APP se adecúa más a los proyectos por los cuales es posible identificar claramente un líder (persona o institución) encargado de la gestión del proyecto desde su preparación. | D19: 3.352941176 | E19: 0.1119842829 | H19: 0.01960396319 | J19: =Cuestionario!J21 -> 0
B20: Categoría 3 | C20: =Cuestionario!H34 -> Características del proyecto adaptadas a la modalidad APP | D20: =SUM(D21:D27) -> 25 | E20: =SUM(E21:E27) -> 1 | F20: =Y188 -> 3.823529412 | G20: =AA188 -> 0.1558752998 | H20: =SUM(H21:H27) -> 0.1558752998 | J20: =SUMPRODUCT(E21:E27,J21:J27) -> 0 | K20: =J20*G20 -> 0
A21: P15 | B21: =Cuestionario!C35 -> Tamaño del proyecto o grupos de proyectos | C21: La modalidad APP se adecúa más a los proyectos (o grupos de proyectos) cuyo tamaño es suficiente para aprovechar potenciales economías de escala y cubrir los costos de transacción más elevados en el caso de APP que en la modalidad de contratación tradicional de la obra pública. | D21: =Y149 -> 3.823529412 | E21: =D21/$D$20 -> 0.1529411765 | H21: =$G$20*E21 -> 0.02383975173 | J21: =Cuestionario!J36 -> 0
A22: P16 | B22: =Cuestionario!C37 -> Tiempo de construcción del proyecto | C22: La modalidad APP se adecúa más a los proyectos cuya duración de la etapa de construcción no es tan larga, considerando que generalmente los pagos al inversionista privado solo ocurren una vez el proyecto entra en operación. | D22: 2.941176471 | E22: =D22/$D$20 -> 0.1176470588 | H22: =$G$20*E22 -> 0.01833827056 | J22: =Cuestionario!J38 -> 0
A23: P17 | B23: =Cuestionario!C39 -> Urgencia del proyecto | C23: La modalidad APP se adecúa más a los proyectos que no son tan urgentes de implementar (por respuesta a desastres naturales o presiones políticas o de la población), del hecho que el proceso de preparación y licitación suele ser más largo en el caso de APP que en el de la obra pública tradicional. | D23: 3.294117647 | E23: 0.1317647059 | H23: 0.02053886303 | J23: =Cuestionario!J40 -> 0
A24: P18 | B24: =Cuestionario!C41 -> Estabilidad de la tecnología del proyecto | C24: La modalidad APP se adecúa más a los proyectos poco intensivos en tecnologías que impliquen cambios acelerados y sufran de obsolescencia rápidamente. | D24: 3.058823529 | E24: 0.1223529412 | H24: 0.01907180138 | J24: =Cuestionario!J42 -> 0
A25: P19 | B25: =Cuestionario!C43 -> Demanda de largo plazo del proyecto | C25: La modalidad APP se adecúa más a los proyectos que tienen una demanda estable, de largo plazo y sin mayor dificultad de estimar a partir de estudios de demanda. | D25: 4.117647059 | E25: 0.1647058824 | H25: 0.02567357878 | J25: =Cuestionario!J44 -> 0
A26: P20 | B26: =Cuestionario!C45 -> Definición de los servicios e indicadores de desempeño (KPI) | C26: La modalidad APP se adecúa más a los proyectos por los cuales es fácil definir en el contrato los servicios a proveer y formular indicadores de desempeño para controlar su calidad. | D26: 4.294117647 | E26: 0.1717647059 | H26: 0.02677387502 | J26: =Cuestionario!J46 -> 0
A27: P21 | B27: =Cuestionario!C47 -> Independencia (interfaz) con otros proyectos | C27: La modalidad APP se adecúa más a los proyectos cuyas ejecución y operación no dependen tanto de la ejecución y/u operación de otros proyectos en desarrollo o infraestructura existente por los riesgos adicionales que esto representa para el proyecto. | D27: 3.470588235 | E27: 0.1388235294 | H27: 0.02163915926 | J27: =Cuestionario!J48 -> 0
B28: Categoría 4 | C28: =Cuestionario!H49 -> Bancabilidad del proyecto APP | D28: =SUM(D29:D40) -> 42.82352941 | E28: =SUM(E29:E40) -> 1 | F28: =Y189 -> 4.294117647 | G28: =AA189 -> 0.175059952 | H28: =SUM(H29:H40) -> 0.175059952 | J28: =SUMPRODUCT(E29:E40,J29:J40) ->  | K28: =J28*G28 -> 
A29: P22 | B29: =Cuestionario!C50 -> Proyecto autofinanciable | C29: La modalidad APP se adecúa tanto a los proyectos que generan ingresos como aquellos que se complementan con pagos del gobierno suficientes para cubrir los costos de la APP. | D29: =Y157 -> 3.882352941 | E29: =D29/$D$28 -> 0.09065934066 | H29: =$G$28*E29 -> 0.01587081983 | J29: =Cuestionario!J51 -> 0
A30: P23 | B30: =Cuestionario!C52 -> Clima de inversión y condiciones macroeconómicas | C30: La modalidad APP se adecúa más a los proyectos que se desarrollan en un entorno económico favorable y condiciones macroeconómicas estables. | D30: =Y158 -> 3.588235294 | E30: =D30/$D$28 -> 0.08379120879 | H30: =$G$28*E30 -> 0.01466848499 | J30: =Cuestionario!J53 -> 0
A31: P24 | B31: =Cuestionario!C54 -> Atractividad del proyecto para los sectores privado y financiero | C31: La modalidad APP se adecúa más a los proyectos que se perciben como razonables desde el punto de vista económico, financieramente rentables y que sea capaces de atraer inversionistas privados e instituciones financieras. | D31: 4.529411765 | E31: 0.1057692308 | H31: 0.01851595647 | J31: =Cuestionario!J55 -> 0
A32: P25 | B32: =Cuestionario!C56 -> Atractividad del proyecto para los organismos internacionales | C32: La modalidad APP se adecúa más a los proyectos atractivos para los organismos internacionales (alineados con sus objetivos estratégicos y la estrategia país). | D32: 3.235294118 | E32: 0.07554945055 | H32: 0.01322568319 | J32: =Cuestionario!J57 -> 0
A33: P26 | B33: =Cuestionario!#REF! ->  | C33: La modalidad de APP es más adecuada en proyectos que son atractivos para la diáspora del país o región del proyecto, ya que representa una fuente potencial de ingresos para el proyecto. | D33: 2.705882353 | E33: 0.06318681319 | H33: 0.01106148049 | J33: =Cuestionario!#REF! -> 
A34: P27 | B34: =Cuestionario!C58 -> Costo de financiamiento | C34: La modalidad APP se adecúa más a los proyectos que pueden conseguir una calificación crediticia favorable y cuyo costo de financiamiento no se anticipa ser alto. | D34: 3.882352941 | E34: 0.09065934066 | H34: 0.01587081983 | J34: =Cuestionario!J59 -> 0
A35: P28 | B35: =Cuestionario!C60 -> Capacidad de los mercados locales de capital | C35: La modalidad APP se adecúa más a los proyectos que se llevan a cabo en un entorno con mercados locales de capitales con cierto nivel de desarrollo y disposición de financiar proyecto a plazos mayores que los bancos. | D35: 3.117647059 | E35: 0.0728021978 | H35: 0.01274474926 | J35: =Cuestionario!J61 -> 0
A36: P29 | B36: =Cuestionario!C62 -> Impacto sobre las finanzas públicas | C36: La modalidad APP se adecúa más a los proyectos que tienen un impacto moderado sobre el presupuesto y el endeudamiento de la entidad pública, considerando el costo presupuestario directo del proyecto, pero también de los pasivos contingentes generados por proyecto. | D36: 4.176470588 | E36: 0.09752747253 | H36: 0.01707315466 | J36: =Cuestionario!J63 -> 0
A37: P30 | B37: =Cuestionario!C64 -> Experiencia del sector privado en el país | C37: La modalidad APP se adecúa más a los proyectos por los cuales existe en el país un nivel alto de experiencia en cuanto al desarrollo de proyectos similares por APP. | D37: 3.176470588 | E37: 0.07417582418 | H37: 0.01298521622 | J37: =Cuestionario!J65 -> 0
A38: P31 | B38: =Cuestionario!#REF! ->  | C38: La modalidad APP se adecúa más a los proyectos por los cuales existe en países semejantes un nivel alto de experiencia en cuanto al desarrollo de proyectos similares por APP. | D38: 3.529411765 | E38: 0.08241758242 | H38: 0.01442801803 | J38: =Cuestionario!J67 -> 0
A39: P32 | B39: =Cuestionario!#REF! ->  | C39: La modalidad APP se adecúa más a los proyectos por los cuales existe en países desarrollados un nivel alto de experiencia en cuanto al desarrollo de proyectos similares por APP. | D39: 2.647058824 | E39: 0.06181318681 | H39: 0.01082101352 | J39: =Cuestionario!#REF! -> 
A40: P33 | B40: =Cuestionario!C68 -> Capacidad del sector privado | C40: La modalidad APP se adecúa más a los proyectos por los cuales existen varias empresas a nivel nacional y/o internacional que tienen la capacidad técnica y de gestión para construir la infraestructura y proveer los servicios del proyecto. | D40: 4.352941176 | E40: 0.1016483516 | H40: 0.01779455556 | J40: =Cuestionario!J69 -> 0
B41: Categoría 5 | C41: =Cuestionario!H70 -> Entorno del proyecto favorable a la modalidad APP | D41: =SUM(D42:D49) -> 30.76470588 | E41: =SUM(E42:E49) -> 1 | F41: =Y190 -> 3.823529412 | G41: =AA190 -> 0.1558752998 | H41: =SUM(H42:H49) -> 0.1558752998 | J41: =SUMPRODUCT(E42:E49,J42:J49) ->  | K41: =J41*G41 -> 
A42: P34 | B42: =Cuestionario!C71 -> Riesgo político | C42: La modalidad APP se adecúa más a los proyectos por los cuales el sector privado no arriesga una expropiación derivados de cambios de gobierno o situaciones de orden interno. | D42: =Y169 -> 3.882352941 | E42: =D42/$D$41 -> 0.1261950287 | H42: =$G$41*E42 -> 0.01967068792 | J42: =Cuestionario!J72 -> 0
A43: P35 | B43: =Cuestionario!C73 -> Experiencia y capacidad del sector público | C43: La modalidad APP se adecúa más a los proyectos por los cuales el sector público tiene la experiencia y capacidad necesaria para llevar a cabo el proyecto y asegurar su monitoreo y supervisión. | D43: =Y170 -> 3.705882353 | E43: =D43/$D$41 -> 0.120458891 | H43: =$G$41*E43 -> 0.01877656575 | J43: =Cuestionario!J74 -> 0
A44: P36 | B44: =Cuestionario!C75 -> Cohesión institucional | C44: La modalidad APP se adecúa más a los proyectos por los cuales existe una alta cohesión institucional entre las diversas partes del sector público que participan al desarrollo del proyecto en sus distintas etapas. | D44: 3.529411765 | E44: 0.1147227533 | H44: 0.01788244357 | J44: =Cuestionario!J76 -> 0
A45: P37 | B45: =Cuestionario!#REF! ->  | C45: La modalidad APP se adecúa más a los proyectos por los cuales existe un marco legal sólido para el desarrollo de APP. | D45: 4.529411765 | E45: 0.1472275335 | H45: 0.02294913591 | J45: =Cuestionario!#REF! -> 
A46: P38 | B46: =Cuestionario!#REF! ->  | C46: La modalidad APP se adecúa más a los proyectos que son capaces de generar competencia al momento del proceso de licitación de manera de obtener las mejores condiciones para el sector público. | D46: 4 | E46: 0.1300191205 | H46: 0.02026676938 | J46: =Cuestionario!#REF! -> 
A47: P39 | B47: =Cuestionario!C77 -> Flexibilidad en el contrato | C47: La modalidad APP se adecúa más a los proyectos que se llevan a cabo en un entorno que garantiza niveles altos de transparencia al momento del proceso de licitación. | D47: 4.058823529 | E47: 0.1319311663 | H47: 0.0205648101 | J47: =Cuestionario!J78 -> 0
A48: P40 | B48: =Cuestionario!C79 -> Competencia al momento de la licitación | C48: La modalidad APP se adecúa más a los proyectos por los cuales el contrato (el modelo de negocio) se puede estructurar de manera suficientemente flexible para poder ajustarse a imprevistos, contingencias y adaptarse en el tiempo a la complejidad del proyecto, lo que limita los riesgos de renegociaciones futuras del contrato. | D48: 3.941176471 | E48: 0.1281070746 | H48: 0.01996872865 | J48: =Cuestionario!J80 -> 0
A49: P41 | B49: =Cuestionario!C81 -> Configuración monopolística | C49: La modalidad APP se adecúa más a los proyectos por los cuales existe al menos una alternativa (un sustituto), lo que le da menos poder de negociación al sector privado una vez firmado el contrato. | D49: 3.117647059 | E49: 0.1013384321 | H49: 0.01579615848 | J49: =Cuestionario!J82 -> 0
B50: Categoría 6 | C50: =Cuestionario!H83 -> Generación de Valor por Dinero bajo la modalidad APP | D50: =SUM(D51:D59) -> 36.11764706 | E50: =SUM(E51:E59) -> 1 | F50: =Y191 -> 4.352941176 | G50: =AA191 -> 0.1774580336 | H50: =SUM(H51:H59) -> 0.1774580336 | J50: =SUMPRODUCT(E51:E59,J51:J59) -> 0 | K50: =J50*G50 -> 0
A51: P42 | B51: =Cuestionario!C84 -> Innovaciones | C51: La modalidad APP se adecúa más a los proyectos por los cuales el sector privado puede implementar una serie de innovaciones técnicas y/u operativas. | D51: =Y177 -> 3.529411765 | E51: =D51/$D$50 -> 0.09771986971 | H51: =$G$50*E51 -> 0.01734117592 | J51: =Cuestionario!J85 -> 0
A52: P43 | B52: =Cuestionario!C86 -> Transferencia y gestión de riesgos | C52: La modalidad APP se adecúa más a los proyectos por los cuales es posible transferir al sector privado una cantidad sustancial de riesgos que el sector privado sabrá gestionar de manera más eficiente que lo haría el sector público. | D52: =Y178 -> 4.470588235 | E52: =D52/$D$50 -> 0.1237785016 | H52: =$G$50*E52 -> 0.0219654895 | J52: =Cuestionario!J87 -> 0
A53: P44 | B53: =Cuestionario!C88 -> Transferencia de tecnologías | C53: La modalidad APP se adecúa más a los proyectos por los cuales el sector privado puede transferir tecnologías usadas en otros países o sectores, al país o sector en el cual se implementa el proyecto APP. | D53: 3.647058824 | E53: 0.1009771987 | H53: 0.01791921512 | J53: =Cuestionario!J89 -> 0
A54: P45 | B54: =Cuestionario!C90 -> Sobrecostos y sobreplazos | C54: La modalidad APP se adecúa más a los proyectos por los cuales proyectos similares, desarrollados bajo la modalidad de contratación tradicional de obra pública, presentan altos sobrecostos y sobreplazos. | D54: 3.705882353 | E54: 0.1026058632 | H54: 0.01820823472 | J54: =Cuestionario!J91 -> 0
A55: P46 | B55: =Cuestionario!C92 -> Integración de funciones (bundling) | C55: La modalidad APP se adecúa más a los proyectos por los cuales existen beneficios potenciales, principalmente en términos de reducción de costos, a integrar en un mismo contrato las diversas fases de desarrollo de un proyecto, en particular el diseño, la construcción, la operación y el mantenimiento. | D55: 4.352941176 | E55: 0.1205211726 | H55: 0.0213874503 | J55: =Cuestionario!J93 -> 0
A56: P47 | B56: =Cuestionario!C94 -> Calidad del servicio | C56: La modalidad APP se adecúa más a los proyectos por los cuales la provisión privada permite mejorar sensiblemente la calidad del servicio en comparación a la modalidad tradicional de gestión de la obra pública. | D56: 4.411764706 | E56: 0.1221498371 | H56: 0.0216764699 | J56: =Cuestionario!J95 -> 0
A57: P48 | B57: =Cuestionario!C96 -> Operación y mantenimiento garantizados | C57: La modalidad APP se adecúa más a los proyectos por los cuales proyectos similares, desarrollados bajo la modalidad de contratación tradicional de obra pública, presentan problemas (por ejemplo, en cuanto a la disponibilidad de recursos) para asegurar niveles adecuados de operación y mantenimiento de los activos públicos. | D57: 4.294117647 | E57: 0.1188925081 | H57: 0.0210984307 | J57: =Cuestionario!J97 -> 0
A58: P49 | B58: =Cuestionario!C98 -> Optimización de los ingresos comerciales | C58: La modalidad APP se adecúa más a los proyectos por los cuales la provisión privada puede permitir generar ingresos comerciales más altos que en el caso de la modalidad tradicional de gestión de la obra pública. | D58: 3.588235294 | E58: 0.0993485342 | H58: 0.01763019552 | J58: =Cuestionario!J99 -> 0
A59: P50 | B59: =Cuestionario!C100 -> Reducción de la espera pública | C59: La modalidad APP se adecúa más a los proyectos por los cuales existen beneficios potenciales importantes en acelerar el ritmo de la inversión pública y que se lleven a cabo más temprano que por la modalidad de contratación tradicional de la obra pública. | D59: 4.117647059 | E59: 0.1140065147 | H59: 0.02023137191 | J59: =Cuestionario!J101 -> 0
C60: Suma Promedio de las Categorías | D60: =SUM(D4,D10,D20,D28,D41,D50) -> 184.9411765 | J60: =COUNTIF(J5:J9,"0")+COUNTIF(J11:J19,"0")+COUNTIF(J21:J27,"0")+COUNTIF(J29:J40,"0")+COUNTIF(J42:J49,"0")+COUNTIF(J51:J59,"0") -> 45
C61: Suma Promedio de los Criterios | D61: =SUM(D5:D9,D11:D19,D21:D27,D29:D40,D42:D49,D51:D59) -> 184.9411765
C68: Criterios | D68: Criterios promedio | G68: Categoría | H68: Categoría media
C69: =B5 -> Alineación con la planeación estratégica nacional | D69: =D5 -> 4.117647059 | G69: =C4 -> Nivel de prioridad del Proyecto APP para la Sociedad y el Gobierno | H69: =F4 -> 3.941176471
C70: =B6 -> Alineación con la planeación estratégica sectorial | D70: =D6 -> 4.352941176 | G70: =C10 -> Viabilidad del Proyecto APP | H70: =F10 -> 4.294117647
C71: =B7 ->  | D71: =D7 -> 4.705882353 | G71: =C20 -> Características del proyecto adaptadas a la modalidad APP | H71: =F20 -> 3.823529412
C72: =B8 -> Generación de riqueza compartida y/o reducción de desigualdad | D72: =D8 -> 3.470588235 | G72: =C28 -> Bancabilidad del proyecto APP | H72: =F28 -> 4.294117647
C73: =B9 -> Reducción de la desigualdad territorial | D73: =D9 -> 3.647058824 | G73: =C41 -> Entorno del proyecto favorable a la modalidad APP | H73: =F41 -> 3.823529412
C74: =B11 -> Complejidad del proyecto | D74: =D11 -> 2.647058824 | G74: =C50 -> Generación de Valor por Dinero bajo la modalidad APP | H74: =F50 -> 4.352941176
C75: Disponibilidad de recursos para financiar estudios | D75: 3.411764706
C76: Compromiso político con el proyecto | D76: 3.294117647
C77: Grado de avances en los estudios | D77: 3.529411765
C78: Rechazo del proyecto por parte de los involucrados | D78: 3.882352941
C79: Número de involucrados | D79: 2.882352941
C80: Impacto ambiental | D80: 3.705882353
C81: Cambio de ley y/o adquisición de terrenos | D81: 3.235294118
C82: Líder del proyecto | D82: 3.352941176
C83: =B21 -> Tamaño del proyecto o grupos de proyectos | D83: =D21 -> 3.823529412
C84: Tiempo de construcción del proyecto | D84: 2.941176471
C85: Urgencia del proyecto | D85: 3.294117647
C86: Estabilidad de la tecnología del proyecto | D86: 3.058823529
C87: Demanda de largo plazo del proyecto | D87: 4.117647059
C88: Definición de los servicios e indicadores de desempeño (KPI) | D88: 4.294117647
C89: Independencia (interfaz) con otros proyectos | D89: 3.470588235
C90: =B29 -> Proyecto autofinanciable | D90: =D29 -> 3.882352941
C91: Clima de inversión y condiciones macroeconómicas | D91: 3.588235294
C92: Atractividad del proyecto para los sectores privado y financiero | D92: 4.529411765
C93: Atractividad del proyecto para los organismos internacionales | D93: 3.235294118
D94: 2.705882353
C95: Costo de financiamiento | D95: 3.882352941
C96: Capacidad de los mercados locales de capital | D96: 3.117647059
C97: Impacto sobre las finanzas públicas | D97: 4.176470588
C98: Experiencia del sector privado en el país | D98: 3.176470588
D99: 3.529411765
D100: 2.647058824
C101: Capacidad del sector privado | D101: 4.352941176
C102: =B42 -> Riesgo político | D102: =D42 -> 3.882352941
C103: Experiencia y capacidad del sector público | D103: 3.705882353
C104: Cohesión institucional | D104: 3.529411765
D105: 4.529411765
D106: 4
C107: Flexibilidad en el contrato | D107: 4.058823529
C108: Competencia al momento de la licitación | D108: 3.941176471
C109: Configuración monopolística | D109: 3.117647059
C110: =B51 -> Innovaciones | D110: =D51 -> 3.529411765
C111: Transferencia y gestión de riesgos | D111: 4.470588235
C112: Transferencia de tecnologías | D112: 3.647058824
C113: Sobrecostos y sobreplazos | D113: 3.705882353
C114: Integración de funciones (bundling) | D114: 4.352941176
C115: Calidad del servicio | D115: 4.411764706
C116: Operación y mantenimiento garantizados | D116: 4.294117647
C117: Optimización de los ingresos comerciales | D117: 3.588235294
C118: Reducción de la espera pública | D118: 4.117647059
F128: Pregunta 1 | G128: P01.0 | H128: 2 | I128: 2 | J128: 1 | K128: 1 | L128: 1 | M128: 1 | N128: 1 | O128: 1 | P128: 2 | Q128: 2 | R128: 1 | S128: 1 | T128: 1 | U128: 1 | V128: 1 | W128: 1 | X128: 1
F129: Pregunta 2 | G129: P02.1 | H129: 2 | I129: 1 | J129: 2 | K129: 2 | L129: 2 | M129: 3 | N129: 1 | O129: 2 | P129: 2 | Q129: 1 | R129: 2 | S129: 2 | T129: 1 | U129: 2 | V129: 1 | W129: 1 | X129: 1
G130: P02.2 | H130: 3 | I130: 3 | J130: 1 | K130: 1 | L130: 1 | M130: 1 | N130: 1 | O130: 1 | P130: 1 | Q130: 1 | R130: 1 | S130: 1 | T130: 1 | U130: 1 | V130: 1 | W130: 3 | X130: 1
G131: P02.3 | H131: 3 | I131: 3 | J131: 3 | K131: 1 | L131: 1 | M131: 1 | N131: 3 | O131: 1 | P131: 3 | Q131: 1 | R131: 1 | S131: 1 | T131: 1 | U131: 1 | V131: 3 | W131: 1 | X131: 3
G132: P02.4 | H132: 2 | I132: 2 | J132: 2 | K132: 2 | L132: 2 | M132: 2 | N132: 2 | O132: 2 | P132: 2 | Q132: 2 | R132: 3 | S132: 2 | T132: 1 | U132: 3 | V132: 1 | W132: 2 | X132: 1
F133: Pregunta 3 | G133: P03.0 | H133: 2 | I133: 2 | J133: 3 | K133: 5 | L133: 3 | M133: 5 | N133: 2 | O133: 3 | P133: 5 | Q133: 2 | R133: 5 | S133: 2 | T133: 3 | U133: 6 | V133: 3 | W133: 6 | X133: 0
F134: Pregunta 4 | G134: P04.0 | H134: 4 | I134: 3 | J134: 3 | K134: 3 | L134: 4 | M134: 4 | N134: 3 | O134: 3 | P134: 3 | Q134: 3 | R134: 3 | S134: 4 | T134: 3 | U134: 4 | V134: 4 | W134: 3 | X134: 3
F135: Pregunta 5 | G135: P05.1.1 | H135: 5 | I135: 3 | J135: 3 | K135: 4 | L135: 4 | M135: 5 | N135: 5 | O135: 2 | P135: 3 | Q135: 4 | R135: 4 | S135: 4 | T135: 5 | U135: 5 | V135: 4 | W135: 5 | X135: 5 | Y135: =AVERAGE(H135:X135) -> 4.117647059
G136: P05.1.2 | H136: 5 | I136: 3 | J136: 4 | K136: 5 | L136: 5 | M136: 5 | N136: 5 | O136: 2 | P136: 4 | Q136: 4 | R136: 4 | S136: 5 | T136: 5 | U136: 5 | V136: 4 | W136: 5 | X136: 4 | Y136: =AVERAGE(H136:X136) -> 4.352941176
G137: P05.1.3 | H137: 5 | I137: 5 | J137: 5 | K137: 5 | L137: 4 | M137: 4 | N137: 4 | O137: 5 | P137: 5 | Q137: 5 | R137: 4 | S137: 4 | T137: 5 | U137: 5 | V137: 5 | W137: 5 | X137: 5 | Y137: 4.705882353
G138: P05.1.4 | H138: 3 | I138: 3 | J138: 4 | K138: 4 | L138: 3 | M138: 3 | N138: 3 | O138: 3 | P138: 3 | Q138: 3 | R138: 3 | S138: 3 | T138: 4 | U138: 4 | V138: 3 | W138: 5 | X138: 5 | Y138: 3.470588235
G139: P05.1.5 | H139: 3 | I139: 3 | J139: 3 | K139: 4 | L139: 2 | M139: 5 | N139: 4 | O139: 3 | P139: 4 | Q139: 3 | R139: 5 | S139: 3 | T139: 4 | U139: 4 | V139: 3 | W139: 5 | X139: 4 | Y139: 3.647058824
G140: P05.2.1 | H140: 1 | I140: 5 | J140: 2 | K140: 2 | L140: 4 | M140: 2 | N140: 5 | O140: 3 | P140: 4 | Q140: 1 | R140: 2 | S140: 1 | T140: 5 | U140: 2 | V140: 2 | W140: 4 | X140: 0 | Y140: 2.647058824
G141: P05.2.2 | H141: 1 | I141: 3 | J141: 5 | K141: 3 | L141: 2 | M141: 4 | N141: 4 | O141: 4 | P141: 3 | Q141: 5 | R141: 2 | S141: 2 | T141: 5 | U141: 2 | V141: 3 | W141: 5 | X141: 5 | Y141: 3.411764706
G142: P05.2.3 | H142: 1 | I142: 1 | J142: 4 | K142: 2 | L142: 2 | M142: 4 | N142: 5 | O142: 5 | P142: 3 | Q142: 5 | R142: 2 | S142: 4 | T142: 4 | U142: 2 | V142: 3 | W142: 5 | X142: 4 | Y142: 3.294117647
G143: P05.2.4 | H143: 1 | I143: 4 | J143: 3 | K143: 5 | L143: 2 | M143: 3 | N143: 5 | O143: 3 | P143: 4 | Q143: 4 | R143: 3 | S143: 4 | T143: 5 | U143: 4 | V143: 2 | W143: 4 | X143: 4 | Y143: 3.529411765
G144: P05.2.5 | H144: 3 | I144: 5 | J144: 4 | K144: 5 | L144: 3 | M144: 2 | N144: 5 | O144: 4 | P144: 5 | Q144: 4 | R144: 2 | S144: 4 | T144: 4 | U144: 5 | V144: 3 | W144: 5 | X144: 3 | Y144: 3.882352941
G145: P05.2.6 | H145: 1 | I145: 5 | J145: 1 | K145: 3 | L145: 3 | M145: 2 | N145: 4 | O145: 3 | P145: 5 | Q145: 2 | R145: 2 | S145: 1 | T145: 4 | U145: 3 | V145: 2 | W145: 4 | X145: 4 | Y145: 2.882352941
G146: P05.2.7 | H146: 3 | I146: 5 | J146: 4 | K146: 3 | L146: 2 | M146: 3 | N146: 4 | O146: 3 | P146: 5 | Q146: 2 | R146: 3 | S146: 2 | T146: 5 | U146: 4 | V146: 5 | W146: 5 | X146: 5 | Y146: 3.705882353
G147: P05.2.8 | H147: 3 | I147: 5 | J147: 2 | K147: 1 | L147: 4 | M147: 2 | N147: 5 | O147: 4 | P147: 5 | Q147: 3 | R147: 2 | S147: 2 | T147: 0 | U147: 5 | V147: 4 | W147: 3 | X147: 5 | Y147: 3.235294118
G148: P05.2.9 | H148: 3 | I148: 5 | J148: 3 | K148: 2 | L148: 2 | M148: 3 | N148: 4 | O148: 2 | P148: 5 | Q148: 5 | R148: 1 | S148: 3 | T148: 4 | U148: 5 | V148: 4 | W148: 3 | X148: 3 | Y148: 3.352941176
G149: P05.3.1 | H149: 3 | I149: 5 | J149: 2 | K149: 4 | L149: 4 | M149: 3 | N149: 4 | O149: 4 | P149: 5 | Q149: 4 | R149: 4 | S149: 4 | T149: 5 | U149: 4 | V149: 4 | W149: 4 | X149: 2 | Y149: 3.823529412
G150: P05.3.2 | H150: 1 | I150: 1 | J150: 3 | K150: 2 | L150: 3 | M150: 4 | N150: 5 | O150: 3 | P150: 4 | Q150: 2 | R150: 3 | S150: 2 | T150: 4 | U150: 2 | V150: 3 | W150: 4 | X150: 4 | Y150: 2.941176471
G151: P05.3.3 | H151: 1 | I151: 1 | J151: 4 | K151: 3 | L151: 3 | M151: 4 | N151: 3 | O151: 5 | P151: 5 | Q151: 5 | R151: 4 | S151: 2 | T151: 4 | U151: 4 | V151: 2 | W151: 4 | X151: 2 | Y151: 3.294117647
G152: P05.3.4 | H152: 1 | I152: 1 | J152: 3 | K152: 2 | L152: 3 | M152: 4 | N152: 4 | O152: 4 | P152: 4 | Q152: 5 | R152: 2 | S152: 1 | T152: 5 | U152: 4 | V152: 2 | W152: 4 | X152: 3 | Y152: 3.058823529
G153: P05.3.5 | H153: 3 | I153: 5 | J153: 5 | K153: 4 | L153: 4 | M153: 2 | N153: 5 | O153: 4 | P153: 4 | Q153: 5 | R153: 4 | S153: 3 | T153: 5 | U153: 5 | V153: 3 | W153: 5 | X153: 4 | Y153: 4.117647059
G154: P05.3.6 | H154: 4 | I154: 5 | J154: 4 | K154: 5 | L154: 5 | M154: 3 | N154: 4 | O154: 5 | P154: 4 | Q154: 4 | R154: 3 | S154: 4 | T154: 4 | U154: 5 | V154: 4 | W154: 5 | X154: 5 | Y154: 4.294117647
G155: P05.3.7 | H155: 3 | I155: 5 | J155: 3 | K155: 4 | L155: 2 | M155: 2 | N155: 4 | O155: 4 | P155: 2 | Q155: 5 | R155: 3 | S155: 2 | T155: 4 | U155: 4 | V155: 4 | W155: 4 | X155: 4 | Y155: 3.470588235
G156: P05.3.8 | H156: 3 | I156: 3 | J156: 3 | K156: 4 | L156: 4 | M156: 4 | N156: 4 | O156: 3 | P156: 4 | Q156: 3 | R156: 3 | S156: 5 | T156: 4 | U156: 5 | V156: 4 | W156: 4 | X156: 5 | Y156: =AVERAGE(H156:X156) -> 3.823529412
G157: P05.4.1 | H157: 3 | I157: 5 | J157: 4 | K157: 5 | L157: 4 | M157: 2 | N157: 4 | O157: 3 | P157: 4 | Q157: 5 | R157: 4 | S157: 3 | T157: 4 | U157: 3 | V157: 4 | W157: 5 | X157: 4 | Y157: 3.882352941
G158: P05.4.2 | H158: 3 | I158: 4 | J158: 3 | K158: 4 | L158: 4 | M158: 3 | N158: 5 | O158: 4 | P158: 4 | Q158: 3 | R158: 3 | S158: 3 | T158: 4 | U158: 3 | V158: 3 | W158: 4 | X158: 4 | Y158: 3.588235294
G159: P05.4.3 | H159: 5 | I159: 5 | J159: 4 | K159: 5 | L159: 4 | M159: 5 | N159: 5 | O159: 5 | P159: 4 | Q159: 5 | R159: 4 | S159: 4 | T159: 4 | U159: 5 | V159: 3 | W159: 5 | X159: 5 | Y159: 4.529411765
G160: P05.4.4 | H160: 2 | I160: 2 | J160: 3 | K160: 4 | L160: 2 | M160: 3 | N160: 4 | O160: 2 | P160: 4 | Q160: 5 | R160: 4 | S160: 4 | T160: 5 | U160: 2 | V160: 2 | W160: 4 | X160: 3 | Y160: 3.235294118
G161: P05.4.5 | H161: 1 | I161: 1 | J161: 2 | K161: 4 | L161: 2 | M161: 4 | N161: 4 | O161: 2 | P161: 3 | Q161: 3 | R161: 4 | S161: 3 | T161: 5 | U161: 2 | V161: 3 | W161: 3 | X161: 0 | Y161: 2.705882353
G162: P05.4.6 | H162: 4 | I162: 4 | J162: 3 | K162: 2 | L162: 4 | M162: 4 | N162: 4 | O162: 4 | P162: 4 | Q162: 4 | R162: 4 | S162: 3 | T162: 5 | U162: 4 | V162: 3 | W162: 5 | X162: 5 | Y162: 3.882352941
G163: P05.4.7 | H163: 3 | I163: 4 | J163: 4 | K163: 5 | L163: 3 | M163: 2 | N163: 4 | O163: 2 | P163: 4 | Q163: 2 | R163: 3 | S163: 2 | T163: 5 | U163: 3 | V163: 3 | W163: 4 | X163: 0 | Y163: 3.117647059
G164: P05.4.8 | H164: 4 | I164: 1 | J164: 5 | K164: 4 | L164: 4 | M164: 4 | N164: 5 | O164: 4 | P164: 5 | Q164: 5 | R164: 2 | S164: 3 | T164: 5 | U164: 5 | V164: 5 | W164: 5 | X164: 5 | Y164: 4.176470588
G165: P05.4.9 | H165: 2 | I165: 3 | J165: 4 | K165: 3 | L165: 2 | M165: 4 | N165: 5 | O165: 2 | P165: 3 | Q165: 4 | R165: 2 | S165: 2 | T165: 5 | U165: 2 | V165: 4 | W165: 4 | X165: 3 | Y165: 3.176470588
G166: P05.4.10 | H166: 3 | I166: 5 | J166: 3 | K166: 3 | L166: 4 | M166: 3 | N166: 5 | O166: 4 | P166: 3 | Q166: 4 | R166: 3 | S166: 2 | T166: 5 | U166: 3 | V166: 3 | W166: 4 | X166: 3 | Y166: 3.529411765
G167: P05.4.11 | H167: 2 | I167: 3 | J167: 1 | K167: 3 | L167: 2 | M167: 3 | N167: 4 | O167: 1 | P167: 3 | Q167: 2 | R167: 3 | S167: 2 | T167: 5 | U167: 2 | V167: 2 | W167: 4 | X167: 3 | Y167: 2.647058824
G168: P05.4.12 | H168: 3 | I168: 5 | J168: 3 | K168: 5 | L168: 4 | M168: 5 | N168: 5 | O168: 4 | P168: 5 | Q168: 4 | R168: 4 | S168: 4 | T168: 5 | U168: 5 | V168: 4 | W168: 5 | X168: 4 | Y168: 4.352941176
G169: P05.5.1 | H169: 3 | I169: 3 | J169: 2 | K169: 4 | L169: 4 | M169: 4 | N169: 5 | O169: 4 | P169: 5 | Q169: 5 | R169: 4 | S169: 3 | T169: 4 | U169: 5 | V169: 4 | W169: 5 | X169: 2 | Y169: 3.882352941
G170: P05.5.2 | H170: 3 | I170: 4 | J170: 4 | K170: 3 | L170: 3 | M170: 4 | N170: 4 | O170: 3 | P170: 3 | Q170: 4 | R170: 1 | S170: 3 | T170: 5 | U170: 5 | V170: 4 | W170: 5 | X170: 5 | Y170: 3.705882353
G171: P05.5.3 | H171: 5 | I171: 3 | J171: 3 | K171: 1 | L171: 2 | M171: 3 | N171: 4 | O171: 4 | P171: 4 | Q171: 3 | R171: 3 | S171: 4 | T171: 5 | U171: 5 | V171: 3 | W171: 4 | X171: 4 | Y171: 3.529411765
G172: P05.5.4 | H172: 5 | I172: 5 | J172: 4 | K172: 5 | L172: 3 | M172: 5 | N172: 5 | O172: 3 | P172: 4 | Q172: 5 | R172: 4 | S172: 5 | T172: 5 | U172: 5 | V172: 4 | W172: 5 | X172: 5 | Y172: 4.529411765
G173: P05.5.5 | H173: 5 | I173: 4 | J173: 5 | K173: 5 | L173: 2 | M173: 2 | N173: 5 | O173: 4 | P173: 4 | Q173: 5 | R173: 4 | S173: 4 | T173: 4 | U173: 2 | V173: 4 | W173: 4 | X173: 5 | Y173: 4
G174: P05.5.6 | H174: 5 | I174: 4 | J174: 4 | K174: 5 | L174: 3 | M174: 2 | N174: 0 | O174: 4 | P174: 4 | Q174: 5 | R174: 5 | S174: 5 | T174: 4 | U174: 5 | V174: 4 | W174: 5 | X174: 5 | Y174: 4.058823529
G175: P05.5.7 | H175: 5 | I175: 4 | J175: 3 | K175: 5 | L175: 3 | M175: 3 | N175: 4 | O175: 3 | P175: 5 | Q175: 3 | R175: 5 | S175: 4 | T175: 5 | U175: 3 | V175: 5 | W175: 4 | X175: 3 | Y175: 3.941176471
G176: P05.5.8 | H176: 4 | I176: 4 | J176: 2 | K176: 5 | L176: 3 | M176: 1 | N176: 3 | O176: 3 | P176: 4 | Q176: 5 | R176: 4 | S176: 1 | T176: 4 | U176: 2 | V176: 4 | W176: 4 | X176: 0 | Y176: 3.117647059
G177: P05.6.1 | H177: 3 | I177: 4 | J177: 3 | K177: 5 | L177: 5 | M177: 4 | N177: 3 | O177: 3 | P177: 4 | Q177: 2 | R177: 4 | S177: 3 | T177: 5 | U177: 3 | V177: 3 | W177: 3 | X177: 3 | Y177: 3.529411765
G178: P05.6.2 | H178: 5 | I178: 5 | J178: 5 | K178: 5 | L178: 5 | M178: 4 | N178: 4 | O178: 4 | P178: 4 | Q178: 4 | R178: 4 | S178: 4 | T178: 5 | U178: 5 | V178: 5 | W178: 4 | X178: 4 | Y178: 4.470588235
G179: P05.6.3 | H179: 3 | I179: 4 | J179: 3 | K179: 5 | L179: 4 | M179: 4 | N179: 3 | O179: 2 | P179: 4 | Q179: 3 | R179: 4 | S179: 3 | T179: 5 | U179: 4 | V179: 4 | W179: 4 | X179: 3 | Y179: 3.647058824
G180: P05.6.4 | H180: 1 | I180: 4 | J180: 4 | K180: 5 | L180: 5 | M180: 3 | N180: 5 | O180: 2 | P180: 3 | Q180: 2 | R180: 3 | S180: 4 | T180: 5 | U180: 5 | V180: 4 | W180: 3 | X180: 5 | Y180: 3.705882353
G181: P05.6.5 | H181: 5 | I181: 4 | J181: 4 | K181: 5 | L181: 5 | M181: 3 | N181: 5 | O181: 4 | P181: 4 | Q181: 4 | R181: 4 | S181: 4 | T181: 5 | U181: 5 | V181: 4 | W181: 4 | X181: 5 | Y181: 4.352941176
G182: P05.6.6 | H182: 5 | I182: 5 | J182: 5 | K182: 5 | L182: 5 | M182: 2 | N182: 5 | O182: 3 | P182: 4 | Q182: 4 | R182: 3 | S182: 5 | T182: 5 | U182: 5 | V182: 5 | W182: 5 | X182: 4 | Y182: 4.411764706
G183: P05.6.7 | H183: 3 | I183: 5 | J183: 5 | K183: 5 | L183: 5 | M183: 2 | N183: 5 | O183: 3 | P183: 5 | Q183: 3 | R183: 4 | S183: 5 | T183: 5 | U183: 5 | V183: 4 | W183: 5 | X183: 4 | Y183: 4.294117647
G184: P05.6.8 | H184: 3 | I184: 5 | J184: 2 | K184: 4 | L184: 2 | M184: 3 | N184: 5 | O184: 3 | P184: 3 | Q184: 2 | R184: 4 | S184: 5 | T184: 4 | U184: 4 | V184: 3 | W184: 4 | X184: 5 | Y184: 3.588235294
G185: P05.6.9 | H185: 5 | I185: 4 | J185: 4 | K185: 5 | L185: 4 | M185: 2 | N185: 5 | O185: 3 | P185: 4 | Q185: 3 | R185: 4 | S185: 5 | T185: 5 | U185: 4 | V185: 4 | W185: 4 | X185: 5 | Y185: 4.117647059
F186: Pregunta 6 | G186: P06.1 | H186: 5 | I186: 1 | J186: 5 | K186: 3 | L186: 3 | M186: 5 | N186: 4 | O186: 2 | P186: 5 | Q186: 4 | R186: 3 | S186: 4 | T186: 5 | U186: 4 | V186: 4 | W186: 5 | X186: 5 | Y186: 3.941176471 | Z186: =SUM(Y186:Y191) -> 24.52941176 | AA186: =Y186/$Z$186 -> 0.1606714628
G187: P06.2 | H187: 4 | I187: 5 | J187: 3 | K187: 5 | L187: 3 | M187: 3 | N187: 5 | O187: 4 | P187: 4 | Q187: 4 | R187: 5 | S187: 5 | T187: 5 | U187: 5 | V187: 5 | W187: 5 | X187: 3 | Y187: 4.294117647 | AA187: =Y187/$Z$186 -> 0.175059952
G188: P06.3 | H188: 3 | I188: 3 | J188: 4 | K188: 5 | L188: 5 | M188: 3 | N188: 4 | O188: 4 | P188: 5 | Q188: 4 | R188: 4 | S188: 3 | T188: 5 | U188: 5 | V188: 4 | W188: 4 | X188: 0 | Y188: 3.823529412 | AA188: 0.1558752998
G189: P06.4 | H189: 5 | I189: 4 | J189: 3 | K189: 4 | L189: 5 | M189: 4 | N189: 5 | O189: 3 | P189: 5 | Q189: 4 | R189: 4 | S189: 4 | T189: 4 | U189: 5 | V189: 5 | W189: 5 | X189: 4 | Y189: 4.294117647 | AA189: 0.175059952
G190: P06.5 | H190: 3 | I190: 3 | J190: 4 | K190: 4 | L190: 3 | M190: 3 | N190: 5 | O190: 4 | P190: 4 | Q190: 4 | R190: 3 | S190: 4 | T190: 4 | U190: 4 | V190: 4 | W190: 4 | X190: 5 | Y190: 3.823529412 | AA190: 0.1558752998
G191: P06.6 | H191: 5 | I191: 4 | J191: 5 | K191: 5 | L191: 5 | M191: 2 | N191: 5 | O191: 3 | P191: 4 | Q191: 4 | R191: 5 | S191: 5 | T191: 4 | U191: 4 | V191: 5 | W191: 4 | X191: 5 | Y191: 4.352941176 | AA191: 0.1774580336
F192: Pregunta8 | G192: P08.1 | H192: 3 | I192: 5 | J192: 2 | K192: 2 | L192: 3 | M192: 3 | N192: 3 | O192: 3 | P192: 4 | Q192: 2 | R192: 2 | S192: 2 | T192: 4 | U192: 1 | V192: 4 | W192: 3 | X192: 4
G193: P08.2 | H193: 2 | I193: 1 | J193: 2 | K193: 2 | L193: 2 | M193: 2 | N193: 3 | O193: 2 | P193: 1 | Q193: 1 | R193: 2 | S193: 1 | T193: 2 | U193: 2 | V193: 3 | W193: 1 | X193: 1
G194: P08.3 | H194: 4 | I194: 5 | J194: 3 | K194: 4 | L194: 5 | M194: 2 | N194: 3 | O194: 2 | P194: 4 | Q194: 1 | R194: 3 | S194: 1 | T194: 1 | U194: 1 | V194: 4 | W194: 2 | X194: 4
G195: P08.4 | H195: 4 | I195: 4 | J195: 4 | K195: 4 | L195: 5 | M195: 4 | N195: 3 | O195: 4 | P195: 4 | Q195: 4 | R195: 3 | S195: 3 | T195: 4 | U195: 2 | V195: 4 | W195: 3 | X195: 3
G196: P08.5 | H196: 4 | I196: 3 | J196: 3 | K196: 4 | L196: 4 | M196: 4 | N196: 3 | O196: 3 | P196: 2 | Q196: 2 | R196: 2 | S196: 2 | T196: 3 | U196: 3 | V196: 4 | W196: 2 | X196: 2
G197: P08.6 | H197: 3 | I197: 2 | J197: 3 | K197: 5 | L197: 4 | M197: 3 | N197: 2 | O197: 3 | P197: 2 | Q197: 3 | R197: 2 | S197: 3 | T197: 3 | U197: 3 | V197: 3 | W197: 4 | X197: 2
G198: P08.7 | H198: 3 | I198: 1 | J198: 2 | K198: 3 | L198: 3 | M198: 4 | N198: 2 | O198: 2 | P198: 2 | Q198: 1 | R198: 2 | S198: 2 | T198: 2 | U198: 3 | V198: 4 | W198: 1 | X198: 3
G199: P08.8 | H199: 3 | I199: 4 | J199: 3 | K199: 4 | L199: 3 | M199: 1 | N199: 4 | O199: 3 | P199: 4 | Q199: 3 | R199: 4 | S199: 4 | T199: 3 | U199: 4 | V199: 5 | W199: 3 | X199: 0
F200: Pregunta 9 | G200: P09.1 | H200: 3 | I200: 2 | J200: 3 | K200: 4 | L200: 9 | M200: 11 | N200: 8 | O200: 2 | P200: 8 | Q200: 1 | R200: 1 | S200: 4 | T200: 8 | U200: 11 | V200: 1 | W200: 0 | X200: 8
G201: P09.2 | H201: 9 | I201: 8 | J201: 2 | K201: 5 | L201: 3 | M201: 8 | N201: 1 | O201: 12 | P201: 1 | Q201: 8 | R201: 3 | S201: 1 | T201: 5 | U201: 1 | V201: 9 | W201: 0 | X201: 1
G202: P09.3 | H202: 2 | I202: 11 | J202: 8 | K202: 8 | L202: 10 | M202: 2 | N202: 2 | O202: 1 | P202: 5 | Q202: 12 | R202: 5 | S202: 8 | T202: 4 | U202: 4 | V202: 5 | W202: 0 | X202: 13
F203: Pregunta 10 | G203: P10.1 | H203: 1 | I203: 4 | J203: 12 | K203: 3 | L203: 2 | M203: 9 | N203: 3 | O203: 9 | P203: 10 | Q203: 4 | R203: 3 | S203: 1 | T203: 12 | U203: 1 | V203: 5 | W203: 0 | X203: 4
G204: P10.2 | H204: 10 | I204: 5 | J204: 7 | K204: 5 | L204: 12 | M204: 2 | N204: 1 | O204: 7 | P204: 12 | Q204: 7 | R204: 12 | S204: 10 | T204: 10 | U204: 10 | V204: 10 | W204: 0 | X204: 10
G205: P10.3 | H205: 12 | I205: 10 | J205: 4 | K205: 1 | L205: 1 | M205: 1 | N205: 4 | O205: 3 | P205: 6 | Q205: 5 | R205: 1 | S205: 9 | T205: 2 | U205: 12 | V205: 12 | W205: 0 | X205: 12
F206: Pregunta 11 | G206: P11.1 | H206: 10 | I206: 0 | J206: 7 | K206: 7 | L206: 1 | M206: 1 | N206: 10 | O206: 1 | P206: 1 | Q206: 9 | R206: 12 | S206: 1 | T206: 12 | U206: 12 | V206: 5 | W206: 0 | X206: 1
G207: P11.2 | H207: 0 | I207: 0 | J207: 8 | K207: 1 | L207: 9 | M207: 4 | N207: 4 | O207: 8 | P207: 2 | Q207: 11 | R207: 5 | S207: 8 | T207: 10 | U207: 0 | V207: 1 | W207: 0 | X207: 9
G208: P11.3 | H208: 0 | I208: 0 | J208: 10 | K208: 4 | L208: 12 | M208: 12 | N208: 5 | O208: 9 | P208: 9 | Q208: 12 | R208: 8 | S208: 9 | T208: 1 | U208: 0 | V208: 12 | W208: 0 | X208: 11
F209: Pregunta 12 | G209: P12.1 | H209: 0 | I209: 3 | J209: 4 | K209: 2 | L209: 4 | M209: 1 | N209: 4 | O209: 4 | P209: 3 | Q209: 4 | R209: 3 | S209: 4 | T209: 5 | U209: 5 | V209: 2 | W209: 0 | X209: 1
G210: P12.2 | H210: 0 | I210: 1 | J210: 5 | K210: 3 | L210: 5 | M210: 2 | N210: 5 | O210: 5 | P210: 4 | Q210: 3 | R210: 4 | S210: 5 | T210: 4 | U210: 1 | V210: 3 | W210: 0 | X210: 2
G211: P12.3 | H211: 0 | I211: 5 | J211: 3 | K211: 4 | L211: 3 | M211: 3 | N211: 3 | O211: 3 | P211: 2 | Q211: 2 | R211: 5 | S211: 3 | T211: 3 | U211: 3 | V211: 4 | W211: 0 | X211: 3
F212: Pregunta 7 | G212: P07 | H212: 0 | I212: 0 | J212: 0 | K212: 0 | L212: 0 | M212: 0 | N212: 0 | O212: 0 | P212: 0 | Q212: 0 | R212: 0 | S212: 0 | T212: 0 | U212: 0 | V212: 0 | W212: 1. Regulación y 2. Supervisión Con esto se refiere a un Marco Legal definido y por parte del Estado un mecanismo de control de eficiencia, transparencia y efectividad de la APP. Nivel de Importancia 5 en ambas | X212: 0
F213: Pregunta 9 (otros) | G213: P09.3.Otros | X213: Ordenamiento Territorial

Sheet P (hidden)
B2: Criterio | C2: Descripción del criterio | D2: Promedio del Criterio | E2: Ponderación Intracategoría (%) | F2: Categoría Promedio | G2: Ponderación de las Categorías (%) | H2: Ponderación de los Criterios (%) | J2: Indice | K2: =SUM(K3,K7,K17,K26,K39,K48) ->  | V2: Promedio Criterio | X2: Promedio Categoría
B3: Categoría 1 | C3: Prioridad del proyecto APP para el país y el gobierno | D3: =SUM(D4:D6) -> 12.9375 | E3: =SUM(E4:E6) -> 1 | F3: 4.433333333 | G3: =F3/$F$58 -> 0.1819475282 | H3: =SUM(H4:H6) -> 0.1819475282 | J3: =SUMPRODUCT(E4:E6,J4:J6) -> 0 | K3: =J3*G3 -> 0 | U3: Categoria 1 | V3: =SUM(V4:V6) -> 12.9375 | W3: =V3=D3 -> TRUE | X3: 4.433333333
A4: 1 | B4: =Cuestionario!C7 -> Alineación con la planeación estratégica nacional | C4: La modalidad de PPP está más adaptada a los proyectos reconocidos como prioridades por la Entidad Pública y perfectamente alineados con la planificación estratégica nacional. | D4: 4.25 | E4: =D4/D3 -> 0.3285024155 | H4: =$G$3*E4 -> 0.0597702025 | J4: =Cuestionario!J8 -> 0 | U4: 1 | V4: 4.25
A5: 2 | B5: =Cuestionario!C9 -> Alineación con la planeación estratégica sectorial | C5: La modalidad APP está más adaptada a los proyectos reconocidos como prioridades por la Entidad Pública y perfectamente alineados con la planificación estratégica sectorial. | D5: 4.166666667 | E5: =D5/D3 -> 0.3220611916 | H5: =$G$3*E5 -> 0.05859823775 | J5: =Cuestionario!J10 -> 0 | U5: 2 | V5: 4.166666667
A6: 3 | B6: =Cuestionario!C13 -> Reducción de la desigualdad territorial | C6: La modalidad APP es más adecuada para proyectos que generan un impacto positivo en la población y que cubren una de sus necesidades o resuelven un problema público. | D6: 4.520833333 | E6: =D6/D3 -> 0.3494363929 | H6: 0.06357908795 | J6: =Cuestionario!J14 -> 0 | U6: 3 | V6: 4.520833333
B7: Categoría 2 | C7: Viabilidad del proyecto APP | D7: =SUM(D8:D16) -> 33.58399123 | E7: =SUM(E8:E16) -> 1 | F7: 4.1625 | G7: =F7/$F$58 -> 0.1708323127 | H7: =SUM(H8:H16) -> 0.1708323127 | J7: =SUMPRODUCT(E8:E16,J8:J16) -> 0 | K7: =J7*G7 -> 0 | P7: 3 | U7: Categoria 2 | V7: =SUM(V8:V16) -> 33.58399123 | W7: =V7=D7 -> TRUE | X7: 4.1625
A8: 4 | B8: =Cuestionario!C16 -> Complejidad del proyecto | C8: La modalidad APP es más adecuada para proyectos que no son altamente complejos en términos de sus especificaciones técnicas, tecnológicas, de ingeniería/arquitectura, ambientales y de calidad de servicio. | D8: 2.879166667 | E8: =D8/$D$7 -> 0.08573033048 | H8: =E8*$G$7 -> 0.01464551062 | J8: =Cuestionario!J17 -> 0 | P8: Viabilidad del proyecto como una APP por categorías | U8: 4 | V8: 2.879166667
A9: 5 | B9: =Cuestionario!C18 -> Disponibilidad de recursos para financiar estudios | C9: La modalidad APP es más adecuada para proyectos para los cuales la Entidad Pública tiene fondos para financiar los procesos de preparación y adquisición más costosos en general para proyectos de APP. | D9: 3.283333333 | E9: =D9/$D$7 -> 0.09776483417 | H9: =E9*$G$7 -> 0.01670139272 | J9: =Cuestionario!J19 -> 0 | P9: Nivel de importancia de los criterios de elegibilidad | U9: 5 | V9: 3.283333333
A10: 6 | B10: =Cuestionario!C22 -> Compromiso político con el proyecto | C10: La modalidad APP es más adecuada para proyectos para los cuales el creador de políticas se compromete a promover el proyecto y el contrato tiene la posibilidad de ser firmado antes del final de su período. | D10: 4.116666667 | E10: 0.1225782439 | H10: 0.02094032488 | J10: =Cuestionario!J23 -> 0 | P10: Nivel de importancia de las categorías de elegibilidad | U10: 6 | V10: 4.116666667
A11: 7 | B11: =Cuestionario!C24 -> Grado de avances en los estudios | C11: La modalidad APP es más adecuada para proyectos en los que hay un alto nivel de progreso en los estudios de preparación de proyectos. | D11: 4.029166667 | E11: 0.1199728358 | H11: 0.020495237 | J11: =Cuestionario!J25 -> 0 | U11: 7 | V11: 4.029166667
A12: 8 | B12: =Cuestionario!C26 -> Rechazo del proyecto por parte de los involucrados | C12: La modalidad APP es más adecuada para proyectos que no generan rechazo por parte de ciertos interesados, especialmente los usuarios, sino también la sociedad en general. | D12: 4.1125 | E12: 0.1224541768 | H12: 0.02091913022 | J12: =Cuestionario!J27 -> 0 | U12: 8 | V12: 4.1125
A13: 9 | B13: =Cuestionario!C28 -> Número de involucrados | C13: La modalidad APP es más adecuada para proyectos con un bajo número de partes interesadas, lo que facilita los acuerdos necesarios para su implementación. | D13: 3.596491228 | E13: 0.1070894523 | H13: 0.01829433881 | J13: =Cuestionario!J29 -> 0 | U13: 9 | V13: 3.596491228
A14: 10 | B14: =Cuestionario!C30 -> Impacto ambiental | C14: La modalidad APP es más adecuada para proyectos con bajos riesgos ambientales y/o ayuda a reducir los costos ambientales. | D14: 3.666666667 | E14: 0.1091790026 | H14: 0.01865130151 | J14: =Cuestionario!J31 -> 0 | U14: 10 | V14: 3.666666667
A15: 11 | B15: =Cuestionario!C32 -> Cambio de ley y/o adquisición de terrenos | C15: La modalidad APP es más adecuada para proyectos para los que no es necesario modificar una ley y/o adquirir tierras (o derechos de paso) cuyos derechos de propiedad están mal definidos. | D15: 3.720833333 | E15: 0.1107918743 | H15: 0.0189268321 | J15: =Cuestionario!J33 -> 0 | U15: 11 | V15: 3.720833333
A16: 12 | B16: =Cuestionario!C20 -> Líder del proyecto | C16: La modalidad APP es más adecuada para proyectos en los que es posible identificar un líder (persona/institución) responsable de llevar a cabo el proyecto como una APP. | D16: 4.179166667 | E16: 0.1244392496 | H16: 0.02125824479 | J16: =Cuestionario!J21 -> 0 | U16: 12 | V16: 4.179166667
B17: Categoría 3 | C17: Características del proyecto adaptadas a la modalidad APP | D17: =SUM(D18:D25) -> 28.86070748 | E17: =SUM(E18:E25) -> 1 | F17: 3.751086957 | G17: =F17/$F$58 -> 0.1539475939 | H17: =SUM(H18:H25) -> 0.1539475939 | J17: =SUMPRODUCT(E18:E25,J18:J25) ->  | K17: =J17*G17 ->  | U17: Categoria 3 | V17: =SUM(V18:V25) -> 28.86070748 | W17: =V17=D17 -> TRUE | X17: 3.751086957
A18: 13 | B18: =Cuestionario!C35 -> Tamaño del proyecto o grupos de proyectos | C18: La modalidad APP es más adecuada para proyectos (o grupo de proyectos) de tamaño suficiente para aprovechar las posibles economías de escala y para cubrir los mayores costos de transacción en caso de una APP. | D18: 3.966666667 | E18: =D18/$D$17 -> 0.1374417682 | H18: =E18*$G$17 -> 0.02115882952 | J18: =Cuestionario!J36 -> 0 | U18: =A18 -> 13 | V18: 3.966666667
A19: 14 | B19: =Cuestionario!C37 -> Tiempo de construcción del proyecto | C19: Como los pagos solo comienzan una vez que el proyecto está en funcionamiento, la modalidad de una APP es más adecuada para proyectos con un tiempo de ejecución no demasiado largo. | D19: 3.329166667 | E19: =D19/$D$17 -> 0.1153529126 | H19: =E19*$G$17 -> 0.01775830335 | J19: =Cuestionario!J38 -> 0 | U19: 14 | V19: 3.329166667
A20: 15 | B20: =Cuestionario!C39 -> Urgencia del proyecto | C20: La modalidad APP es más adecuada para proyectos que no son muy urgentes de implementar porque los procesos de preparación y adquisición generalmente son más largos para una APP. | D20: 3.245833333 | E20: 0.1124654805 | H20: 0.01731379012 | J20: =Cuestionario!J40 -> 0 | U20: 15 | V20: 3.245833333
A21: 16 | B21: =Cuestionario!C41 -> Estabilidad de la tecnología del proyecto | C21: La modalidad APP es más adecuada para proyectos que no son muy intensivos en tecnologías que experimentan cambios acelerados y se vuelven obsoletos rápidamente. | D21: 3.236956522 | E21: 0.1121579062 | H21: 0.0172664398 | J21: =Cuestionario!J42 -> 0 | U21: 16 | V21: 3.236956522
A22: 17 | B22: =Cuestionario!C43 -> Demanda de largo plazo del proyecto | C22: La modalidad APP es más adecuada para proyectos que tienen una demanda estable a largo plazo y son fáciles de estimar a partir de estudios de demanda. | D22: 4.029166667 | E22: 0.1396073423 | H22: 0.02149221444 | J22: =Cuestionario!J44 -> 0 | U22: 17 | V22: 4.029166667
A23: 18 | B23: =Cuestionario!C45 -> Definición de los servicios e indicadores de desempeño (KPI) | C23: La modalidad APP es más adecuada para proyectos para los que es fácil definir en un contrato los servicios que se prestarán y formular indicadores de rendimiento para controlar su calidad. | D23: 4.120614035 | E23: 0.1427759191 | H23: 0.02198000922 | J23: =Cuestionario!J46 -> 0 | U23: 18 | V23: 4.120614035
A24: 19 | B24: =Cuestionario!C47 -> Independencia (interfaz) con otros proyectos | C24: La modalidad APP es más adecuada para proyectos cuya ejecución y operación no dependen significativamente de la ejecución y/o operación de otros proyectos o infraestructura existente. | D24: 3.504385965 | E24: 0.1214241185 | H24: 0.01869295089 | J24: =Cuestionario!J48 -> 0 | U24: 19 | V24: 3.504385965
A25: 20 | B25: =Cuestionario!#REF! ->  | C25: La modalidad APP es más adecuada para proyectos cuyo objetivo es la prestación directa o indirecta de un servicio público como apoyo para la prestación de un servicio público. | D25: 3.42791762 | E25: 0.1187745527 | H25: 0.01828505661 | J25: =Cuestionario!#REF! ->  | U25: 20 | V25: 3.42791762
B26: Categoría 4 | C26: Bancabilidad del proyecto APP | D26: =SUM(D27:D38) -> 42.82916667 | E26: =SUM(E27:E38) -> 1 | F26: 4.089912281 | G26: =F26/$F$58 -> 0.1678532549 | H26: =SUM(H27:H38) -> 0.1678532549 | J26: =SUMPRODUCT(E27:E38,J27:J38) ->  | K26: =J26*G26 ->  | U26: Categoria 4 | V26: =SUM(V27:V38) -> 42.82916667 | W26: =V26=D26 -> TRUE | X26: 4.089912281
A27: 21 | B27: =Cuestionario!C50 -> Proyecto autofinanciable | C27: La modalidad APP es más adecuada para proyectos que generan ingresos (que no sean fuentes públicas) suficientes para cubrir los costos de la APP. | D27: 3.979166667 | E27: =D27/$D$26 -> 0.09290787042 | H27: =E27*$G$26 -> 0.01559488845 | J27: =Cuestionario!J51 -> 0 | U27: 21 | V27: 3.979166667
A28: 22 | B28: =Cuestionario!C52 -> Clima de inversión y condiciones macroeconómicas | C28: La modalidad APP es más adecuada para proyectos que tienen lugar en un clima de inversión favorable y condiciones macroeconómicas estables. | D28: 4.008333333 | E28: =D28/$D$26 -> 0.09358887051 | H28: =E28*$G$26 -> 0.01570919654 | J28: =Cuestionario!J53 -> 0 | U28: 22 | V28: 4.008333333
A29: 23 | B29: =Cuestionario!C54 -> Atractividad del proyecto para los sectores privado y financiero | C29: La modalidad APP es más adecuada para proyectos percibidos como un mercado rentable y capaz de atraer inversores privados e instituciones financieras. | D29: 3.958333333 | E29: 0.09242144177 | H29: 0.01551323982 | J29: =Cuestionario!J55 -> 0 | U29: 23 | V29: 3.958333333
A30: 24 | B30: =Cuestionario!C56 -> Atractividad del proyecto para los organismos internacionales | C30: La modalidad APP es más adecuada para proyectos atractivos para organizaciones internacionales (en línea con sus objetivos estratégicos), lo que reduce el costo del proyecto APP para el país. | D30: 3.458333333 | E30: 0.08074715439 | H30: 0.01355367269 | J30: =Cuestionario!J57 -> 0 | U30: 24 | V30: 3.458333333
A31: 25 | B31: =Cuestionario!#REF! ->  | C31: La modalidad APP es más adecuada para proyectos que son atractivos para la diáspora del país o la región del proyecto, ya que representa una fuente potencial de ingresos para el proyecto. | D31: 2.683333333 | E31: 0.06265200895 | H31: 0.01051634363 | J31: =Cuestionario!#REF! ->  | U31: 25 | V31: 2.683333333
A32: 26 | B32: =Cuestionario!C58 -> Costo de financiamiento | C32: La modalidad APP es más adecuada para proyectos que pueden obtener una puntuación de crédito favorable y cuyo costo de financiamiento no se considera demasiado alto. | D32: 3.454166667 | E32: 0.08064986866 | H32: 0.01353734296 | J32: =Cuestionario!J59 -> 0 | U32: 26 | V32: 3.454166667
A33: 27 | B33: =Cuestionario!C60 -> Capacidad de los mercados locales de capital | C33: La modalidad APP es más adecuada para proyectos que tienen lugar en un entorno donde los mercados de capital locales están bien desarrollados. | D33: 3.191666667 | E33: 0.07452086779 | H33: 0.01250857022 | J33: =Cuestionario!J61 -> 0 | U33: 27 | V33: 3.191666667
A34: 28 | B34: =Cuestionario!C62 -> Impacto sobre las finanzas públicas | C34: La modalidad APP es más adecuada para proyectos que tienen un impacto sostenible en el presupuesto y la deuda de la Entidad Pública, ya sea por su costo presupuestario directo, pero también por los posibles pasivos potenciales generados por el proyecto. | D34: 3.7625 | E34: 0.08784901255 | H34: 0.0147457427 | J34: =Cuestionario!J63 -> 0 | U34: 28 | V34: 3.7625
A35: 29 | B35: =Cuestionario!C64 -> Experiencia del sector privado en el país | C35: La modalidad APP es más adecuada para proyectos para los cuales existe un alto nivel de experiencia en el país en el desarrollo de proyectos similares. | D35: 3.325 | E35: 0.07763401109 | H35: 0.01303112145 | J35: =Cuestionario!J65 -> 0 | U35: 29 | V35: 3.325
A36: 30 | B36: =Cuestionario!C66 -> Experiencia del sector privado en países semejantes | C36: La modalidad APP es más adecuada para proyectos para los cuales hay en países comparables un alto nivel de experiencia en el desarrollo de proyectos similares. | D36: 3.629166667 | E36: 0.08473586925 | H36: 0.01422319146 | J36: =Cuestionario!J67 -> 0 | U36: 30 | V36: 3.629166667
A37: 31 | B37: =Cuestionario!#REF! ->  | C37: La modalidad APP es más adecuada para proyectos para los cuales existe un alto nivel de experiencia en países desarrollados en el desarrollo de proyectos similares. | D37: 3.279166667 | E37: 0.07656386808 | H37: 0.01285149446 | J37: =Cuestionario!#REF! ->  | U37: 31 | V37: 3.279166667
A38: 32 | B38: =Cuestionario!C68 -> Capacidad del sector privado | C38: La modalidad APP es más adecuada para proyectos para los cuales existen muchas empresas a nivel nacional e internacional con una alta capacidad técnica y de gestión para brindar servicios de proyectos. | D38: 4.1 | E38: 0.09572915653 | H38: 0.01606845051 | J38: =Cuestionario!J69 -> 0 | U38: 32 | V38: 4.1
B39: Categoría 5 | C39: Entorno del proyecto conducente a la modalidad APP | D39: =SUM(D40:D47) -> 32.79122807 | E39: =SUM(E40:E47) -> 1 | F39: 3.85 | G39: =F39/$F$58 -> 0.158007064 | H39: =SUM(H40:H47) -> 0.158007064 | J39: =SUMPRODUCT(E40:E47,J40:J47) ->  | K39: =J39*G39 ->  | U39: Categoria 5 | V39: =SUM(V40:V47) -> 32.79122807 | W39: =V39=D39 -> TRUE | X39: 3.85
A40: 33 | B40: =Cuestionario!C71 -> Riesgo político | C40: La modalidad APP es más adecuada para proyectos para los cuales el sector privado no está en riesgo debido a un cambio de mayoría a expropiar. | D40: 4.316666667 | E40: =D40/$D$39 -> 0.1316408967 | H40: =E40*$G$39 -> 0.02080019158 | J40: =Cuestionario!J72 -> 0 | U40: 33 | V40: 4.316666667
A41: 34 | B41: =Cuestionario!C73 -> Experiencia y capacidad del sector público | C41: La modalidad APP es más adecuada para proyectos en los que el sector público tiene la capacidad y la experiencia para llevar a cabo una APP y garantizar su supervisión. | D41: 3.925 | E41: =D41/$D$39 -> 0.1196966454 | H41: =E41*$G$39 -> 0.01891291551 | J41: =Cuestionario!J74 -> 0 | U41: 34 | V41: 3.925
A42: 35 | B42: =Cuestionario!C75 -> Cohesión institucional | C42: La modalidad APP es más adecuada para proyectos para los cuales existe una fuerte cohesión institucional entre las diferentes partes del sector público involucrado en el proyecto en sus diferentes etapas. | D42: 4.020833333 | E42: 0.122619175 | H42: 0.01937469583 | J42: =Cuestionario!J76 -> 0 | U42: 35 | V42: 4.020833333
A43: 36 | B43: =Cuestionario!#REF! ->  | C43: La modalidad APP es más adecuada para proyectos para los que existe un marco legal sólido para el desarrollo de la APP. | D43: 4.154166667 | E43: 0.1266853031 | H43: 0.02001717279 | J43: =Cuestionario!#REF! ->  | U43: 36 | V43: 4.154166667
A44: 37 | B44: =Cuestionario!#REF! ->  | C44: La modalidad APP es más adecuada para proyectos que pueden generar competencia durante el proceso de adquisición para obtener las mejores condiciones para el sector público. | D44: 4.316666667 | E44: 0.1316408967 | H44: 0.02080019158 | J44: =Cuestionario!#REF! ->  | U44: 37 | V44: 4.316666667
A45: 38 | B45: =Cuestionario!C77 -> Flexibilidad en el contrato | C45: La modalidad APP es más adecuada para proyectos que se llevan a cabo en un entorno que garantiza altos niveles de transparencia durante el proceso de adquisición. | D45: 4.345394737 | E45: 0.1325169868 | H45: 0.02093862001 | J45: =Cuestionario!J78 -> 0 | U45: 38 | V45: 4.345394737
A46: 39 | B46: =Cuestionario!C79 -> Competencia al momento de la licitación | C46: La modalidad APP es más adecuada para proyectos para los cuales el contrato (y el modelo de negocio) se pueden estructurar de manera flexible para permitir el ajuste a eventos imprevistos y contingencias y para adaptarse a la complejidad del proyecto a lo largo del tiempo. Lo que permite limitar los riesgos de renegociaciones del contrato. | D46: 4.079166667 | E46: 0.124398106 | H46: 0.0196557795 | J46: =Cuestionario!J80 -> 0 | U46: 39 | V46: 4.079166667
A47: 40 | B47: =Cuestionario!C81 -> Configuración monopolística | C47: La modalidad APP es más adecuada para proyectos para los cuales hay al menos un sustituto, lo que otorga menos poder de negociación al sector privado una vez que se firma el contrato. | D47: 3.633333333 | E47: 0.1108019903 | H47: 0.01750749716 | J47: =Cuestionario!J82 -> 0 | U47: 40 | V47: 3.633333333
B48: Categoría 6 | C48: Generación de valor a través de la modalidad APP | D48: =SUM(D49:D57) -> 35.30833333 | E48: =SUM(E49:E57) -> 1 | F48: 4.079166667 | G48: =F48/$F$58 -> 0.1674122463 | H48: =SUM(H49:H57) -> 0.1674122463 | J48: =SUMPRODUCT(E49:E57,J49:J57) -> 0 | K48: =J48*G48 -> 0 | U48: Categoria 6 | V48: =SUM(V49:V57) -> 35.30833333 | W48: =V48=D48 -> TRUE | X48: 4.079166667
A49: 41 | B49: =Cuestionario!C84 -> Innovaciones | C49: La modalidad APP es más adecuada para proyectos en los que el sector privado puede implementar innovaciones técnicas y/o de gestión. | D49: 3.625 | E49: =D49/$D$48 -> 0.1026669814 | H49: =E49*$G$48 -> 0.01718770997 | J49: =Cuestionario!J85 -> 0 | U49: 41 | V49: 3.625
A50: 42 | B50: =Cuestionario!C86 -> Transferencia y gestión de riesgos | C50: La modalidad APP es más adecuada para proyectos para los cuales el sector privado puede transferir tecnologías usadas en otros países o sectores al país o sector de implementación de la APP. | D50: 3.65 | E50: =D50/$D$48 -> 0.1033750295 | H50: =E50*$G$48 -> 0.0173062459 | J50: =Cuestionario!J87 -> 0 | U50: 42 | V50: 3.65
A51: 43 | B51: =Cuestionario!C88 -> Transferencia de tecnologías | C51: La modalidad APP es más adecuada para proyectos donde es posible transferir al sector privado una cantidad sustancial de riesgo que el sector privado será más eficiente de administrar. | D51: 4.120833333 | E51: 0.1167099363 | H51: 0.0195386726 | J51: =Cuestionario!J89 -> 0 | U51: 43 | V51: 4.120833333
A52: 44 | B52: =Cuestionario!C90 -> Sobrecostos y sobreplazos | C52: La modalidad APP es más adecuada para proyectos para los cuales proyectos similares, desarrollados por la modalidad de contratación tradicional, tienen costos y retrasos adicionales significativos. | D52: 3.758333333 | E52: 0.1064432381 | H52: 0.0178199016 | J52: =Cuestionario!J91 -> 0 | U52: 44 | V52: 3.758333333
A53: 45 | B53: =Cuestionario!C92 -> Integración de funciones (bundling) | C53: La modalidad APP es más adecuada para proyectos para los cuales existen beneficios potenciales significativos, principalmente reducción de costos, para integrar las diferentes fases del proyecto en el mismo contrato. | D53: 4.004166667 | E53: 0.1134057116 | H53: 0.01898550493 | J53: =Cuestionario!J93 -> 0 | U53: 45 | V53: 4.004166667
A54: 46 | B54: =Cuestionario!C94 -> Calidad del servicio | C54: La modalidad APP es más adecuada para proyectos para los cuales la prestación privada mejorará significativamente la calidad del servicio en comparación con la modalidad de gestión tradicional. | D54: 4.195833333 | E54: 0.1188340807 | H54: 0.01989428039 | J54: =Cuestionario!J95 -> 0 | U54: 46 | V54: 4.195833333
A55: 47 | B55: =Cuestionario!C96 -> Operación y mantenimiento garantizados | C55: La modalidad APP es más adecuada para proyectos para los cuales proyectos similares, desarrollados por la modalidad de contratación tradicional, presentan problemas en cuanto a la disponibilidad de recursos para garantizar niveles adecuados de operación y mantenimiento. | D55: 4.054166667 | E55: 0.1148218079 | H55: 0.01922257679 | J55: =Cuestionario!J97 -> 0 | U55: 47 | V55: 4.054166667
A56: 48 | B56: =Cuestionario!C98 -> Optimización de los ingresos comerciales | C56: La modalidad APP es más adecuada para proyectos para los cuales la provisión privada puede generar mayores ingresos comerciales que la modalidad de contratación tradicional. | D56: 3.779166667 | E56: 0.1070332783 | H56: 0.01791868155 | J56: =Cuestionario!J99 -> 0 | U56: 48 | V56: 3.779166667
A57: 49 | B57: =Cuestionario!C100 -> Reducción de la espera pública | C57: La modalidad APP es más adecuada para proyectos para los cuales existen beneficios potenciales significativos para acelerar el ritmo de la inversión pública y que estos proyectos se realizan antes que con la modalidad de contratación tradicional. | D57: 4.120833333 | E57: 0.1167099363 | H57: 0.0195386726 | J57: =Cuestionario!J101 -> 0 | U57: 49 | V57: 4.120833333
B58: Cuenta el número de celdas en blanco ( < 4 ) | D58: =COUNTIF(D4:D6,"0")+COUNTIF(D8:D16,"0")+COUNTIF(D18:D25,"0")+COUNTIF(D27:D38,"0")+COUNTIF(D40:D47,"0")+COUNTIF(D49:D57,"0") -> 0 | F58: =F48+F39+F26+F17+F7+F3 -> 24.36599924 | G58: =G48+G39+G26+G17+G7+G3 -> 1 | H58: =H48+H39+H26+H17+H7+H3 -> 1 | J58: =COUNTIF(J4:J6,"0")+COUNTIF(J8:J16,"0")+COUNTIF(J18:J25,"0")+COUNTIF(J27:J38,"0")+COUNTIF(J40:J47,"0")+COUNTIF(J49:J57,"0") -> 44
V60: Espera pública reducida | W60: 7.1
V61: Mayor calidad de servicio | W61: 4.9
V62: Garantía de operación y mantenimiento. | W62: 4.2
V63: Integración de las fases del proyecto. | W63: 4.1
V64: Maximizando los ingresos del negocio | W64: 2.6
B70: Criterios | D70: Criterios promedio | F70: Categoría | G70: Categoría media
A71: 1 | B71: Alineación con la planeación estratégica nacional | D71: 4.25 | E71: 1 | F71: Prioridad del proyecto APP para el país y el gobierno | G71: =F3 -> 4.433333333 | J71: Prioridad del proyecto APP para el país y el gobierno
A72: 2 | B72: Alineación con la planeación estratégica sectorial | D72: 4.166666667 | E72: 2 | F72: Viabilidad del proyecto APP | G72: =F7 -> 4.1625 | J72: Viabilidad del proyecto APP
A73: 3 | B73: Impacto positivo del proyecto para la sociedad | D73: 4.520833333 | E73: 3 | F73: Características del proyecto adaptadas a la modalidad APP | G73: =F17 -> 3.751086957 | J73: Características del proyecto adaptadas a la modalidad APP
A74: 4 | B74: Complejidad del proyecto | D74: 2.879166667 | E74: 4 | F74: Bancabilidad del proyecto APP | G74: =F26 -> 4.089912281 | J74: Bancabilidad del proyecto APP
A75: 5 | B75: Disponibilidad de recursos para financiar estudios | D75: 3.283333333 | E75: 5 | F75: Entorno del proyecto conducente a la modalidad APP | G75: =F39 -> 3.85 | J75: Entorno del proyecto conducente a la modalidad APP
A76: 6 | B76: Compromiso político con el proyecto | D76: 4.116666667 | E76: 6 | F76: Generación de valor a través de la modalidad APP | G76: =F48 -> 4.079166667 | J76: Generación de valor a través de la modalidad APP
A77: 7 | B77: Grado de avances en los estudios | D77: 4.029166667
A78: 8 | B78: Rechazo del proyecto por parte de los involucrados | D78: 4.1125
A79: 9 | B79: Número de involucrados | D79: 3.596491228
A80: 10 | B80: Impacto ambiental | D80: 3.666666667
A81: 11 | B81: Cambio de ley y/o adquisición de terrenos | D81: 3.720833333
A82: 12 | B82: Líder del proyecto | D82: 4.179166667
A83: 13 | B83: Tamaño del proyecto o grupos de proyectos | D83: 3.966666667
A84: 14 | B84: Tiempo de construcción del proyecto | D84: 3.329166667
A85: 15 | B85: Urgencia del proyecto | D85: 3.245833333
A86: 16 | B86: Estabilidad de la tecnología del proyecto | D86: 3.236956522
A87: 17 | B87: Demanda de largo plazo del proyecto | D87: 4.029166667
A88: 18 | B88: Definición de los servicios e indicadores de desempeño (KPI) | D88: 4.120614035
A89: 19 | B89: Independencia (interfaz) con otros proyectos | D89: 3.504385965
A90: 20 | B90: Provisión de un servicio público | D90: 3.42791762
A91: 21 | B91: Proyecto autofinanciable | D91: 3.979166667
A92: 22 | B92: Clima de inversión y condiciones macroeconómicas | D92: 4.008333333
A93: 23 | B93: Atractividad del proyecto para los sectores privado y financiero | D93: 3.958333333
A94: 24 | B94: Atractividad del proyecto para los organismos internacionales | D94: 3.458333333
A95: 25 | B95: Atractividad del proyecto para la diáspora | D95: 2.683333333
A96: 26 | B96: Costo de financiamiento | D96: 3.454166667
A97: 27 | B97: Capacidad de los mercados locales de capital | D97: 3.191666667
A98: 28 | B98: Impacto sobre las finanzas públicas | D98: 3.7625
A99: 29 | B99: Experiencia del sector privado en el país | D99: 3.325
A100: 30 | B100: Experiencia del sector privado en países comparables | D100: 3.629166667
A101: 31 | B101: Experiencia del sector privado en países desarrollados | D101: 3.279166667
A102: 32 | B102: Capacidad del sector privado | D102: 4.1
A103: 33 | B103: Riesgo político | D103: 4.316666667
A104: 34 | B104: Experiencia y capacidad del sector público | D104: 3.925
A105: 35 | B105: Cohesión institucional | D105: 4.020833333
A106: 36 | B106: Marco legal favorable a la modalidad APP | D106: 4.154166667
A107: 37 | B107: Transparencia de los procesos de licitación | D107: 4.316666667
A108: 38 | B108: Competencia al momento de la licitación | D108: 4.345394737
A109: 39 | B109: Flexibilidad en el contrato | D109: 4.079166667
A110: 40 | B110: Configuración monopolística | D110: 3.633333333
A111: 41 | B111: Innovaciones | D111: 3.625
A112: 42 | B112: Transferencia y gestión de riesgos | D112: 3.65
A113: 43 | B113: Transferencia de tecnologías | D113: 4.120833333
A114: 44 | B114: Sobrecostos y sobreplazos | D114: 3.758333333
A115: 45 | B115: Integración de funciones (bundling) | D115: 4.004166667
A116: 46 | B116: Calidad del servicio | D116: 4.195833333
A117: 47 | B117: Operación y mantenimiento garantizados | D117: 4.054166667
A118: 48 | B118: Optimización de los ingresos comerciales | D118: 3.779166667
A119: 49 | B119: Reducción de la espera pública | D119: 4.120833333
